DEPARTMENTAL FAMILY,ENTITY,DATE,EXPENSE_AREA_3,EXPENSE_TYPE_3,SUPPLIER,TRANSACTION_NUMBER,AMOUNT
Ministry of Justice,MoJ HQ,14-Jul-11,PZ501-MoJ ICT Feeder,212001-Agency staff,METHODS CONSULTING,1053446,"26,664.00"
Ministry of Justice,MoJ HQ,28-Jul-11,PZ501-MoJ ICT Feeder,212001-Agency staff,CAPITA RESOURCING LTD,1054442,"61,931.52"
Ministry of Justice,MoJ HQ,05-Jul-11,PZ501-MoJ ICT Feeder,212001-Agency staff,CAPITA RESOURCING LTD,1052705,"26,061.59"
Ministry of Justice,MoJ HQ,07-Jul-11,PZ501-MoJ ICT Feeder,212001-Agency staff,CAPITA RESOURCING LTD,1052833,"31,789.13"
Ministry of Justice,MoJ HQ,14-Jul-11,PZ501-MoJ ICT Feeder,212001-Agency staff,CAPITA RESOURCING LTD,1053288,"36,792.64"
Ministry of Justice,MoJ HQ,14-Jul-11,PZ501-MoJ ICT Feeder,212001-Agency staff,CAPITA RESOURCING LTD,1053288,"37,065.17"
Ministry of Justice,MoJ HQ,18-Jul-11,PZ501-MoJ ICT Feeder,212001-Agency staff,CAPITA RESOURCING LTD,1053680,"34,535.83"
Ministry of Justice,MoJ HQ,18-Jul-11,PZ501-MoJ ICT Feeder,212001-Agency staff,CAPITA RESOURCING LTD,1053680,"36,987.30"
Ministry of Justice,MoJ HQ,21-Jul-11,PZ501-MoJ ICT Feeder,212001-Agency staff,CAPITA RESOURCING LTD,1053904,"34,079.98"
Ministry of Justice,MoJ HQ,25-Jul-11,LZ600-Transforming Justice,212001-Agency staff,CENTRAL OFFICE OF INFORMATION (COI),1054203,"26,901.00"
Ministry of Justice,MoJ HQ,28-Jul-11,PZ501-MoJ ICT Feeder,212001-Agency staff,CAPITA RESOURCING LTD,1054442,"38,016.48"
Ministry of Justice,MoJ HQ,05-Jul-11,NZ406-Strategic Estates Feeder,221000-Property Rent and Rates,GVA GRIMLEY LTD T/A GVA,1052727,"37,257.30"
Ministry of Justice,MoJ HQ,11-Jul-11,NZ406-Strategic Estates Feeder,221000-Property Rent and Rates,DTZ DEBENHAM TIE LEUNG,1053048,"1,006,550.35"
Ministry of Justice,MoJ HQ,05-Jul-11,NZ406-Strategic Estates Feeder,222002-Other Property Costs,LAMBERT SMITH HAMPTON GROUP LTD - TA LAMBERT SMITH HAMPTON,1052738,"45,120.00"
Ministry of Justice,MoJ HQ,27-Jul-11,NZ406-Strategic Estates Feeder,222002-Other Property Costs,HOME OFFICE,1054388,"7,075,000.00"
Ministry of Justice,MoJ HQ,14-Jul-11,NZ406-Strategic Estates Feeder,261000-Fuel and Utilities,EDF ENERGY LTD,1053335,"26,944.29"
Ministry of Justice,MoJ HQ,25-Jul-11,NZ406-Strategic Estates Feeder,261000-Fuel and Utilities,EDF ENERGY LTD,1054228,"69,093.68"
Ministry of Justice,MoJ HQ,28-Jul-11,NZ406-Strategic Estates Feeder,261000-Fuel and Utilities,DEPARTMENT OF ENERGY & CLIMATE CHANGE (DECC),1054475,"160,015.44"
Ministry of Justice,MoJ HQ,11-Jul-11,NZ406-Strategic Estates Feeder,222002-Other Property Costs,CARLISLE SECURITY SERVICES LTD,1053027,"119,471.89"
Ministry of Justice,MoJ HQ,11-Jul-11,NZ406-Strategic Estates Feeder,222002-Other Property Costs,CARLISLE SECURITY SERVICES LTD,1053027,"41,130.12"
Ministry of Justice,MoJ HQ,07-Jul-11,NZ406-Strategic Estates Feeder,222002-Other Property Costs,LANCASTER OFFICE CLEANING CO LTD,1052896,"107,609.83"
Ministry of Justice,MoJ HQ,14-Jul-11,NZ406-Strategic Estates Feeder,222002-Other Property Costs,CALIBRE CONSULTANCY LTD,1053284,"33,407.52"
Ministry of Justice,MoJ HQ,21-Jul-11,NZ406-Strategic Estates Feeder,222002-Other Property Costs,JACOBS ENGINEERING UK LTD,1053994,"37,834.56"
Ministry of Justice,MoJ HQ,14-Jul-11,NZ406-Strategic Estates Feeder,222002-Other Property Costs,AMARYLLIS LIMITED,1053211,"31,560.23"
Ministry of Justice,MoJ HQ,18-Jul-11,NZ406-Strategic Estates Feeder,222001-Maintenance,M J FERGUSON LTD,1053762,"311,710.17"
Ministry of Justice,MoJ HQ,21-Jul-11,NX900-MOJ Shared Services,262000-SCA Costs,LIBERATA UK LTD,1054018,"363,001.68"
Ministry of Justice,MoJ HQ,14-Jul-11,NX900-MOJ Shared Services,262000-SCA Costs,LIBERATA UK LTD,1053426,"57,337.08"
Ministry of Justice,MoJ HQ,21-Jul-11,NX900-MOJ Shared Services,262000-SCA Costs,LIBERATA UK LTD,1054018,"60,433.62"
Ministry of Justice,MoJ HQ,21-Jul-11,NX900-MOJ Shared Services,262000-SCA Costs,LIBERATA UK LTD,1054018,"30,402.19"
Ministry of Justice,MoJ HQ,14-Jul-11,NX900-MOJ Shared Services,262000-SCA Costs,LIBERATA UK LTD,1053426,"1,409,821.84"
Ministry of Justice,MoJ HQ,14-Jul-11,RE999-CJG - Research & Analysis,223000-Other Expenditure,UNIVERSITY OF SURREY,1053609,"30,010.95"
Ministry of Justice,MoJ HQ,28-Jul-11,RE999-CJG - Research & Analysis,223000-Other Expenditure,UNIVERSITY OF KENT,1054662,"37,893.60"
Ministry of Justice,MoJ HQ,18-Jul-11,PZ501-MoJ ICT Feeder,223001-Printing Postage and Office expenditure,LIBERATA UK LTD,1053755,"73,496.52"
Ministry of Justice,MoJ HQ,18-Jul-11,PZ501-MoJ ICT Feeder,223001-Printing Postage and Office expenditure,LIBERATA UK LTD,1053755,"62,001.65"
Ministry of Justice,MoJ HQ,07-Jul-11,NZ406-Strategic Estates Feeder,223001-Printing Postage and Office expenditure,GOVERNMENT CAR & DESPATCH AGENCY,1052864,"34,463.32"
Ministry of Justice,MoJ HQ,07-Jul-11,MD600-Information Directorate,223000-Other Expenditure,SWEET & MAXWELL LTD,1052973,"43,962.00"
Ministry of Justice,MoJ HQ,07-Jul-11,MD600-Information Directorate,223000-Other Expenditure,SWEET & MAXWELL LTD,1052973,"66,806.42"
Ministry of Justice,MoJ HQ,14-Jul-11,MD600-Information Directorate,223000-Other Expenditure,LEXIS NEXIS BUTTERWORTHS,1053425,"190,012.80"
Ministry of Justice,MoJ HQ,18-Jul-11,NZ406-Strategic Estates Feeder,223001-Printing Postage and Office expenditure,C F CAPITAL PLC,1053677,"58,879.38"
Ministry of Justice,MoJ HQ,18-Jul-11,NZ406-Strategic Estates Feeder,223001-Printing Postage and Office expenditure,C F CAPITAL PLC,1053677,"56,709.44"
Ministry of Justice,MoJ HQ,18-Jul-11,NZ406-Strategic Estates Feeder,223001-Printing Postage and Office expenditure,C F CAPITAL PLC,1053677,"35,405.27"
Ministry of Justice,MoJ HQ,18-Jul-11,NZ406-Strategic Estates Feeder,223001-Printing Postage and Office expenditure,C F CAPITAL PLC,1053677,"56,685.94"
Ministry of Justice,MoJ HQ,18-Jul-11,NZ406-Strategic Estates Feeder,223001-Printing Postage and Office expenditure,C F CAPITAL PLC,1053677,"102,767.64"
Ministry of Justice,MoJ HQ,18-Jul-11,NZ406-Strategic Estates Feeder,223001-Printing Postage and Office expenditure,C F CAPITAL PLC,1053677,"56,425.07"
Ministry of Justice,MoJ HQ,18-Jul-11,NZ406-Strategic Estates Feeder,223001-Printing Postage and Office expenditure,C F CAPITAL PLC,1053677,"43,060.82"
Ministry of Justice,MoJ HQ,18-Jul-11,NZ406-Strategic Estates Feeder,223001-Printing Postage and Office expenditure,C F CAPITAL PLC,1053677,"25,715.68"
Ministry of Justice,MoJ HQ,18-Jul-11,NZ406-Strategic Estates Feeder,223001-Printing Postage and Office expenditure,C F CAPITAL PLC,1053677,"56,425.07"
Ministry of Justice,MoJ HQ,18-Jul-11,NZ406-Strategic Estates Feeder,223001-Printing Postage and Office expenditure,C F CAPITAL PLC,1053677,"64,590.17"
Ministry of Justice,MoJ HQ,04-Jul-11,PZ501-MoJ ICT Feeder,265000-IT & Telecommunications,ORACLE CORPORATION UK LTD,1052626,"573,437.43"
Ministry of Justice,MoJ HQ,07-Jul-11,PZ501-MoJ ICT Feeder,265000-IT & Telecommunications,CACI LTD,1052829,"25,245.60"
Ministry of Justice,MoJ HQ,07-Jul-11,PZ501-MoJ ICT Feeder,265000-IT & Telecommunications,CACI LTD,1052829,"69,870.00"
Ministry of Justice,MoJ HQ,14-Jul-11,PZ501-MoJ ICT Feeder,265000-IT & Telecommunications,CABLE & WIRELESS,1053281,"105,840.00"
Ministry of Justice,MoJ HQ,14-Jul-11,PZ501-MoJ ICT Feeder,265000-IT & Telecommunications,CABLE & WIRELESS,1053281,"48,026.40"
Ministry of Justice,MoJ HQ,14-Jul-11,PZ501-MoJ ICT Feeder,265000-IT & Telecommunications,DESIGN SYSTEMS,1053313,"53,658.00"
Ministry of Justice,MoJ HQ,21-Jul-11,PZ501-MoJ ICT Feeder,265000-IT & Telecommunications,CACI LTD,1053900,"48,450.16"
Ministry of Justice,MoJ HQ,21-Jul-11,NX900-MOJ Shared Services,265000-IT & Telecommunications,ACCENTURE (UK) LIMITED,1053844,"402,848.40"
Ministry of Justice,MoJ HQ,28-Jul-11,PZ501-MoJ ICT Feeder,265000-IT & Telecommunications,HOME OFFICE,1054522,"63,670.36"
Ministry of Justice,MoJ HQ,28-Jul-11,PZ501-MoJ ICT Feeder,265000-IT & Telecommunications,BYTES SOFTWARE SERVICES LTD,1054437,"30,615.66"
Ministry of Justice,MoJ HQ,28-Jul-11,PZ501-MoJ ICT Feeder,265000-IT & Telecommunications,STERIA LTD,1054636,"63,986.40"
Ministry of Justice,MoJ HQ,28-Jul-11,PZ501-MoJ ICT Feeder,265000-IT & Telecommunications,STERIA LTD,1054636,"33,822.00"
Ministry of Justice,MoJ HQ,28-Jul-11,PZ501-MoJ ICT Feeder,265000-IT & Telecommunications,ALLIES COMPUTING,1054405,"31,200.00"
Ministry of Justice,MoJ HQ,28-Jul-11,PZ501-MoJ ICT Feeder,265000-IT & Telecommunications,CABLE & WIRELESS,1054438,"62,945.10"
Ministry of Justice,MoJ HQ,04-Jul-11,PZ501-MoJ ICT Feeder,265000-IT & Telecommunications,HP ENTERPRISE SERVICES UK LTD,1052589,"57,713.00"
Ministry of Justice,MoJ HQ,04-Jul-11,PZ501-MoJ ICT Feeder,265000-IT & Telecommunications,HP ENTERPRISE SERVICES UK LTD,1052589,"177,038.40"
Ministry of Justice,MoJ HQ,04-Jul-11,PZ501-MoJ ICT Feeder,265000-IT & Telecommunications,HP ENTERPRISE SERVICES UK LTD,1052589,"54,642.13"
Ministry of Justice,MoJ HQ,04-Jul-11,PZ501-MoJ ICT Feeder,265000-IT & Telecommunications,HP ENTERPRISE SERVICES UK LTD,1052589,"46,622.40"
Ministry of Justice,MoJ HQ,04-Jul-11,PZ501-MoJ ICT Feeder,265000-IT & Telecommunications,HP ENTERPRISE SERVICES UK LTD,1052589,"1,132,531.19"
Ministry of Justice,MoJ HQ,04-Jul-11,PZ501-MoJ ICT Feeder,265000-IT & Telecommunications,HP ENTERPRISE SERVICES UK LTD,1052589,"145,567.99"
Ministry of Justice,MoJ HQ,04-Jul-11,PZ501-MoJ ICT Feeder,265000-IT & Telecommunications,HP ENTERPRISE SERVICES UK LTD,1052589,"57,713.00"
Ministry of Justice,MoJ HQ,04-Jul-11,PZ501-MoJ ICT Feeder,265000-IT & Telecommunications,HP ENTERPRISE SERVICES UK LTD,1052589,"42,831.12"
Ministry of Justice,MoJ HQ,04-Jul-11,PZ501-MoJ ICT Feeder,265000-IT & Telecommunications,HP ENTERPRISE SERVICES UK LTD,1052589,"145,567.99"
Ministry of Justice,MoJ HQ,04-Jul-11,PZ501-MoJ ICT Feeder,265000-IT & Telecommunications,HP ENTERPRISE SERVICES UK LTD,1052589,"1,128,542.08"
Ministry of Justice,MoJ HQ,04-Jul-11,PZ501-MoJ ICT Feeder,265000-IT & Telecommunications,HP ENTERPRISE SERVICES UK LTD,1052589,"65,635.76"
Ministry of Justice,MoJ HQ,04-Jul-11,PZ501-MoJ ICT Feeder,265000-IT & Telecommunications,HP ENTERPRISE SERVICES UK LTD,1052589,"25,048.91"
Ministry of Justice,MoJ HQ,04-Jul-11,PZ501-MoJ ICT Feeder,265000-IT & Telecommunications,HP ENTERPRISE SERVICES UK LTD,1052589,"54,110.30"
Ministry of Justice,MoJ HQ,04-Jul-11,PZ501-MoJ ICT Feeder,265000-IT & Telecommunications,HP ENTERPRISE SERVICES UK LTD,1052589,"54,550.54"
Ministry of Justice,MoJ HQ,04-Jul-11,PZ501-MoJ ICT Feeder,265000-IT & Telecommunications,HP ENTERPRISE SERVICES UK LTD,1052589,"177,038.40"
Ministry of Justice,MoJ HQ,04-Jul-11,PZ501-MoJ ICT Feeder,265000-IT & Telecommunications,DETICA LTD,1052561,"95,376.00"
Ministry of Justice,MoJ HQ,04-Jul-11,PZ501-MoJ ICT Feeder,265000-IT & Telecommunications,HP ENTERPRISE SERVICES UK LTD,1052589,"2,824,325.82"
Ministry of Justice,MoJ HQ,04-Jul-11,PZ501-MoJ ICT Feeder,265000-IT & Telecommunications,HP ENTERPRISE SERVICES UK LTD,1052589,"39,865.42"
Ministry of Justice,MoJ HQ,07-Jul-11,PZ501-MoJ ICT Feeder,265000-IT & Telecommunications,FUJITSU SERVICES LTD,1052859,"32,961.15"
Ministry of Justice,MoJ HQ,07-Jul-11,PZ501-MoJ ICT Feeder,265000-IT & Telecommunications,FUJITSU SERVICES LTD,1052859,"50,526.31"
Ministry of Justice,MoJ HQ,07-Jul-11,PZ501-MoJ ICT Feeder,265000-IT & Telecommunications,FUJITSU SERVICES LTD,1052859,"174,584.82"
Ministry of Justice,MoJ HQ,07-Jul-11,PZ501-MoJ ICT Feeder,265000-IT & Telecommunications,FUJITSU SERVICES LTD,1052859,"133,674.40"
Ministry of Justice,MoJ HQ,07-Jul-11,PZ501-MoJ ICT Feeder,265000-IT & Telecommunications,FUJITSU SERVICES LTD,1052859,"43,887.60"
Ministry of Justice,MoJ HQ,07-Jul-11,PZ501-MoJ ICT Feeder,265000-IT & Telecommunications,FUJITSU SERVICES LTD,1052859,"121,756.27"
Ministry of Justice,MoJ HQ,07-Jul-11,PZ501-MoJ ICT Feeder,265000-IT & Telecommunications,FUJITSU SERVICES LTD,1052859,"41,062.32"
Ministry of Justice,MoJ HQ,07-Jul-11,PZ501-MoJ ICT Feeder,265000-IT & Telecommunications,FUJITSU SERVICES LTD,1052859,"447,908.34"
Ministry of Justice,MoJ HQ,07-Jul-11,PZ501-MoJ ICT Feeder,265000-IT & Telecommunications,FUJITSU SERVICES LTD,1052859,"70,099.45"
Ministry of Justice,MoJ HQ,07-Jul-11,PZ501-MoJ ICT Feeder,265000-IT & Telecommunications,CACI LTD,1052829,"28,200.00"
Ministry of Justice,MoJ HQ,07-Jul-11,PZ501-MoJ ICT Feeder,265000-IT & Telecommunications,FUJITSU SERVICES LTD,1052859,"43,483.20"
Ministry of Justice,MoJ HQ,14-Jul-11,PZ501-MoJ ICT Feeder,265000-IT & Telecommunications,DETICA LTD,1053314,"156,687.60"
Ministry of Justice,MoJ HQ,18-Jul-11,PZ501-MoJ ICT Feeder,265000-IT & Telecommunications,FUJITSU SERVICES LTD,1053717,"119,847.99"
Ministry of Justice,MoJ HQ,25-Jul-11,PZ501-MoJ ICT Feeder,265000-IT & Telecommunications,HP ENTERPRISE SERVICES UK LTD,1054271,"65,208.08"
Ministry of Justice,MoJ HQ,25-Jul-11,PZ501-MoJ ICT Feeder,265000-IT & Telecommunications,STERIA LTD,1054352,"2,434,856.98"
Ministry of Justice,MoJ HQ,25-Jul-11,PZ501-MoJ ICT Feeder,265000-IT & Telecommunications,STERIA LTD,1054352,"94,526.10"
Ministry of Justice,MoJ HQ,25-Jul-11,PZ501-MoJ ICT Feeder,265000-IT & Telecommunications,STERIA LTD,1054352,"37,868.48"
Ministry of Justice,MoJ HQ,25-Jul-11,PZ501-MoJ ICT Feeder,265000-IT & Telecommunications,HP ENTERPRISE SERVICES UK LTD,1054271,"65,208.08"
Ministry of Justice,MoJ HQ,25-Jul-11,PZ501-MoJ ICT Feeder,265000-IT & Telecommunications,STERIA LTD,1054352,"1,034,160.76"
Ministry of Justice,MoJ HQ,25-Jul-11,PZ501-MoJ ICT Feeder,265000-IT & Telecommunications,STERIA LTD,1054352,"31,835.75"
Ministry of Justice,MoJ HQ,25-Jul-11,PZ501-MoJ ICT Feeder,265000-IT & Telecommunications,STERIA LTD,1054352,"60,350.28"
Ministry of Justice,MoJ HQ,25-Jul-11,PZ501-MoJ ICT Feeder,265000-IT & Telecommunications,STERIA LTD,1054352,"36,058.80"
Ministry of Justice,MoJ HQ,25-Jul-11,PZ501-MoJ ICT Feeder,265000-IT & Telecommunications,STERIA LTD,1054352,"69,936.38"
Ministry of Justice,MoJ HQ,25-Jul-11,PZ501-MoJ ICT Feeder,265000-IT & Telecommunications,STERIA LTD,1054352,"175,169.32"
Ministry of Justice,MoJ HQ,25-Jul-11,PZ501-MoJ ICT Feeder,265000-IT & Telecommunications,STERIA LTD,1054352,"245,760.00"
Ministry of Justice,MoJ HQ,25-Jul-11,ME600-Legal Directorate,265000-IT & Telecommunications,CAPITA HARTSHEAD LTD,1054197,"39,000.00"
Ministry of Justice,MoJ HQ,25-Jul-11,PZ501-MoJ ICT Feeder,265000-IT & Telecommunications,STERIA LTD,1054352,"38,996.20"
Ministry of Justice,MoJ HQ,25-Jul-11,PZ501-MoJ ICT Feeder,265000-IT & Telecommunications,HP ENTERPRISE SERVICES UK LTD,1054271,"101,956.54"
Ministry of Justice,MoJ HQ,26-Jul-11,PZ501-MoJ ICT Feeder,265000-IT & Telecommunications,HP ENTERPRISE SERVICES UK LTD,1054385,"101,956.54"
Ministry of Justice,MoJ HQ,28-Jul-11,PZ501-MoJ ICT Feeder,265000-IT & Telecommunications,HP ENTERPRISE SERVICES UK LTD,1054525,"39,746.92"
Ministry of Justice,MoJ HQ,28-Jul-11,PZ501-MoJ ICT Feeder,265000-IT & Telecommunications,CABLE & WIRELESS,1054438,"473,918.83"
Ministry of Justice,MoJ HQ,28-Jul-11,PZ501-MoJ ICT Feeder,265000-IT & Telecommunications,FUJITSU SERVICES LTD,1054496,"68,764.04"
Ministry of Justice,MoJ HQ,28-Jul-11,PZ501-MoJ ICT Feeder,265000-IT & Telecommunications,HP ENTERPRISE SERVICES UK LTD,1054525,"41,235.00"
Ministry of Justice,MoJ HQ,28-Jul-11,PZ501-MoJ ICT Feeder,265000-IT & Telecommunications,HP ENTERPRISE SERVICES UK LTD,1054525,"93,096.00"
Ministry of Justice,MoJ HQ,28-Jul-11,PZ501-MoJ ICT Feeder,265000-IT & Telecommunications,STERIA LTD,1054636,"112,359.41"
Ministry of Justice,MoJ HQ,28-Jul-11,PZ501-MoJ ICT Feeder,265000-IT & Telecommunications,FUJITSU SERVICES LTD,1054496,"95,641.99"
Ministry of Justice,MoJ HQ,28-Jul-11,PZ501-MoJ ICT Feeder,265000-IT & Telecommunications,HP ENTERPRISE SERVICES UK LTD,1054525,"50,758.12"
Ministry of Justice,MoJ HQ,28-Jul-11,LZ600-Transforming Justice,223000-Other Expenditure,CENTRAL OFFICE OF INFORMATION (COI),1054449,"48,000.00"
Ministry of Justice,MoJ HQ,04-Jul-11,PZ501-MoJ ICT Feeder,265000-IT & Telecommunications,HP ENTERPRISE SERVICES UK LTD,1052589,"157,250.00"
Ministry of Justice,MoJ HQ,04-Jul-11,PZ501-MoJ ICT Feeder,265000-IT & Telecommunications,HP ENTERPRISE SERVICES UK LTD,1052589,"151,394.45"
Ministry of Justice,MoJ HQ,04-Jul-11,PZ501-MoJ ICT Feeder,265000-IT & Telecommunications,HP ENTERPRISE SERVICES UK LTD,1052589,"31,794.07"
Ministry of Justice,MoJ HQ,04-Jul-11,PZ501-MoJ ICT Feeder,265000-IT & Telecommunications,HP ENTERPRISE SERVICES UK LTD,1052589,"172,777.64"
Ministry of Justice,MoJ HQ,04-Jul-11,PZ501-MoJ ICT Feeder,265000-IT & Telecommunications,HP ENTERPRISE SERVICES UK LTD,1052589,"245,253.68"
Ministry of Justice,MoJ HQ,04-Jul-11,PZ501-MoJ ICT Feeder,265000-IT & Telecommunications,HP ENTERPRISE SERVICES UK LTD,1052589,"31,833.54"
Ministry of Justice,MoJ HQ,04-Jul-11,PZ501-MoJ ICT Feeder,265000-IT & Telecommunications,HP ENTERPRISE SERVICES UK LTD,1052589,"29,144.83"
Ministry of Justice,MoJ HQ,04-Jul-11,PZ501-MoJ ICT Feeder,265000-IT & Telecommunications,VODAFONE CORPORATE LTD,1052676,"26,090.54"
Ministry of Justice,MoJ HQ,28-Jul-11,PZ501-MoJ ICT Feeder,265000-IT & Telecommunications,VODAFONE CORPORATE LTD,1054663,"26,313.46"
Ministry of Justice,MoJ HQ,07-Jul-11,MD600-Information Directorate,223000-Other Expenditure,TNT UK LTD,1052986,"79,032.44"
Ministry of Justice,MoJ HQ,18-Jul-11,PZ501-MoJ ICT Feeder,265000-IT & Telecommunications,LOGICA UK LTD,1053759,"109,105.20"
Ministry of Justice,MoJ HQ,18-Jul-11,PZ501-MoJ ICT Feeder,265000-IT & Telecommunications,LOGICA UK LTD,1053759,"46,900.80"
Ministry of Justice,MoJ HQ,25-Jul-11,LZ430-I&B Operations,265000-IT & Telecommunications,LOGICA UK LTD,1054288,"72,027.60"
Ministry of Justice,MoJ HQ,28-Jul-11,PZ501-MoJ ICT Feeder,265000-IT & Telecommunications,LOGICA UK LTD,1054561,"45,045.25"
Ministry of Justice,MoJ HQ,04-Jul-11,RE999-CJG - Research & Analysis,265000-IT & Telecommunications,ATOS ORIGIN IT SERVICES UK LTD,1052530,"108,150.00"
Ministry of Justice,MoJ HQ,21-Jul-11,PZ501-MoJ ICT Feeder,265000-IT & Telecommunications,ATOS ORIGIN IT SERVICES UK LTD,1053857,"26,792.40"
Ministry of Justice,MoJ HQ,21-Jul-11,NZ406-Strategic Estates Feeder,265000-IT & Telecommunications,ATOS ORIGIN IT SERVICES UK LTD,1053857,"25,455.60"
Ministry of Justice,MoJ HQ,25-Jul-11,PZ501-MoJ ICT Feeder,265000-IT & Telecommunications,ATOS ORIGIN IT SERVICES UK LTD,1054173,"207,040.68"
Ministry of Justice,MoJ HQ,25-Jul-11,PZ501-MoJ ICT Feeder,265000-IT & Telecommunications,ATOS ORIGIN IT SERVICES UK LTD,1054173,"116,802.00"
Ministry of Justice,MoJ HQ,25-Jul-11,PZ501-MoJ ICT Feeder,265000-IT & Telecommunications,ATOS ORIGIN IT SERVICES UK LTD,1054173,"124,121.52"
Ministry of Justice,MoJ HQ,28-Jul-11,NZ406-Strategic Estates Feeder,265000-IT & Telecommunications,ATOS ORIGIN IT SERVICES UK LTD,1054412,"215,041.68"
Ministry of Justice,MoJ HQ,28-Jul-11,PZ501-MoJ ICT Feeder,265000-IT & Telecommunications,ATOS ORIGIN IT SERVICES UK LTD,1054412,"154,984.50"
Ministry of Justice,MoJ HQ,28-Jul-11,PZ501-MoJ ICT Feeder,265000-IT & Telecommunications,ATOS ORIGIN IT SERVICES UK LTD,1054412,"56,404.30"
Ministry of Justice,MoJ HQ,28-Jul-11,PZ501-MoJ ICT Feeder,265000-IT & Telecommunications,ATOS ORIGIN IT SERVICES UK LTD,1054412,"30,242.53"
Ministry of Justice,MoJ HQ,28-Jul-11,PZ501-MoJ ICT Feeder,265000-IT & Telecommunications,ATOS ORIGIN IT SERVICES UK LTD,1054412,"25,981.20"
Ministry of Justice,MoJ HQ,28-Jul-11,PZ501-MoJ ICT Feeder,265000-IT & Telecommunications,ATOS ORIGIN IT SERVICES UK LTD,1054412,"146,607.60"
Ministry of Justice,MoJ HQ,28-Jul-11,PZ501-MoJ ICT Feeder,265000-IT & Telecommunications,ATOS ORIGIN IT SERVICES UK LTD,1054412,"41,443.20"
Ministry of Justice,MoJ HQ,28-Jul-11,"RD999-CJG - DGs Office, BDSU, Inspectorates & Ombudsman",265000-IT & Telecommunications,ATOS ORIGIN IT SERVICES UK LTD,1054412,"31,734.00"
Ministry of Justice,MoJ HQ,28-Jul-11,PZ501-MoJ ICT Feeder,265000-IT & Telecommunications,ATOS ORIGIN IT SERVICES UK LTD,1054412,"32,850.00"
Ministry of Justice,MoJ HQ,28-Jul-11,NZ406-Strategic Estates Feeder,265000-IT & Telecommunications,ATOS ORIGIN IT SERVICES UK LTD,1054412,"143,361.12"
Ministry of Justice,MoJ HQ,28-Jul-11,PZ501-MoJ ICT Feeder,265000-IT & Telecommunications,ATOS ORIGIN IT SERVICES UK LTD,1054412,"70,569.60"
Ministry of Justice,MoJ HQ,28-Jul-11,PZ501-MoJ ICT Feeder,265000-IT & Telecommunications,ATOS ORIGIN IT SERVICES UK LTD,1054412,"57,053.04"
Ministry of Justice,MoJ HQ,28-Jul-11,PZ501-MoJ ICT Feeder,265000-IT & Telecommunications,ATOS ORIGIN IT SERVICES UK LTD,1054412,"87,649.21"
Ministry of Justice,MoJ HQ,28-Jul-11,PZ501-MoJ ICT Feeder,265000-IT & Telecommunications,ATOS ORIGIN IT SERVICES UK LTD,1054412,"35,072.40"
Ministry of Justice,MoJ HQ,28-Jul-11,PZ501-MoJ ICT Feeder,265000-IT & Telecommunications,ATOS ORIGIN IT SERVICES UK LTD,1054412,"36,138.00"
Ministry of Justice,MoJ HQ,07-Jul-11,RB999-JPG - CJRD,265000-IT & Telecommunications,LOGICA UK LTD,1052904,"52,260.00"
Ministry of Justice,MoJ HQ,18-Jul-11,PZ501-MoJ ICT Feeder,264000-Consultancy,MOORHOUSE CONSULTING LTD,1053769,"157,581.60"
Ministry of Justice,MoJ HQ,07-Jul-11,LZ600-Transforming Justice,264000-Consultancy,KPMG,1052894,"118,964.40"
Ministry of Justice,MoJ HQ,07-Jul-11,LZ600-Transforming Justice,264000-Consultancy,KPMG,1052894,"67,985.03"
Ministry of Justice,MoJ HQ,04-Jul-11,QY300-Fleet Car Mgmt,223000-Other Expenditure,ARVAL UK LTD,1052528,"28,893.78"
Ministry of Justice,MoJ HQ,07-Jul-11,QY300-Fleet Car Mgmt,223000-Other Expenditure,ARVAL UK LTD,1052806,"38,592.24"
Ministry of Justice,MoJ HQ,28-Jul-11,QY300-Fleet Car Mgmt,223000-Other Expenditure,LEX AUTOLEASE LTD,1054556,"130,126.14"
Ministry of Justice,MoJ HQ,18-Jul-11,KY340-Access to Justice Delivery,223000-Other Expenditure,CICA (CRIMINAL INJURIES COMPENSATION AUTHORITY),1053685,"341,113.00"
Ministry of Justice,MoJ HQ,28-Jul-11,RE999-CJG - Research & Analysis,223000-Other Expenditure,HOME OFFICE,1054522,"31,072.80"
Ministry of Justice,MoJ HQ,04-Jul-11,MD600-Information Directorate,266000-Judicial Costs,BANKS ROBERT MR,1052536,"59,504.40"
Ministry of Justice,MoJ HQ,07-Jul-11,MD600-Information Directorate,266000-Judicial Costs,HAMMICKS LEGAL INFORMATION SERVICES,1052867,"50,017.50"
Ministry of Justice,MoJ HQ,07-Jul-11,MD600-Information Directorate,266000-Judicial Costs,HAMMICKS LEGAL INFORMATION SERVICES,1052867,"787,802.40"
Ministry of Justice,MoJ HQ,18-Jul-11,MD600-Information Directorate,266000-Judicial Costs,HAMMICKS LEGAL INFORMATION SERVICES,1053728,"196,411.94"
Ministry of Justice,MoJ HQ,21-Jul-11,MD600-Information Directorate,266000-Judicial Costs,SWEET & MAXWELL LTD,1054118,"34,408.00"
Ministry of Justice,MoJ HQ,21-Jul-11,MD600-Information Directorate,266000-Judicial Costs,HAMMICKS LEGAL INFORMATION SERVICES,1053976,"668,332.55"
Ministry of Justice,MoJ HQ,04-Jul-11,MF600-Directorate of Judicial Offices,266000-Judicial Costs,CALDER CONFERENCES LTD,1052548,"42,595.92"
Ministry of Justice,MoJ HQ,05-Jul-11,MF600-Directorate of Judicial Offices,266000-Judicial Costs,CALDER CONFERENCES LTD,1052704,"29,743.09"
Ministry of Justice,MoJ HQ,11-Jul-11,MF600-Directorate of Judicial Offices,266000-Judicial Costs,CALDER CONFERENCES LTD,1053024,"31,577.94"
Ministry of Justice,MoJ HQ,28-Jul-11,MF600-Directorate of Judicial Offices,266000-Judicial Costs,CALDER CONFERENCES LTD,1054440,"43,592.95"
Ministry of Justice,MoJ HQ,04-Jul-11,MG600-International Directorate,246000-Current Grants,COUNCIL OF EUROPE,17365,"154,669.08"
Ministry of Justice,MoJ HQ,11-Jul-11,RC999-Criminal Justice Group - OMS,246000-Current Grants,DEPARTMENT FOR EDUCATION,1053044,"2,279,748.00"
Ministry of Justice,MoJ HQ,14-Jul-11,RB999-JPG - CJRD,246000-Current Grants,REFUGE,1053514,"28,864.75"
Ministry of Justice,MoJ HQ,14-Jul-11,RB999-JPG - CJRD,246000-Current Grants,DOMESTIC VIOLENCE AND ABUSE SERVICE (SOUTH AND WEST DEVON),1053322,"27,449.99"
Ministry of Justice,MoJ HQ,14-Jul-11,RB999-JPG - CJRD,246000-Current Grants,IPSWICH AND SUFFOLK COUNCIL FOR RACIAL EQUALITY,1053397,"31,275.00"
Ministry of Justice,MoJ HQ,14-Jul-11,RB999-JPG - CJRD,246000-Current Grants,GREATER MANCHESTER HIGH SHERIFF'S POLICE TRUST,1053367,"26,700.00"
Ministry of Justice,MoJ HQ,14-Jul-11,RB999-JPG - CJRD,246000-Current Grants,LIGHTHOUSE WOMEN'S AID LTD TRADING AS IPSWICH WOMEN'S AID,1053428,"31,704.75"
Ministry of Justice,MoJ HQ,18-Jul-11,RG999-CFLAP Accumulator,246000-Current Grants,OFFICE FOR LEGAL COMPLAINTS,1053776,"46,382.83"
Ministry of Justice,MoJ HQ,25-Jul-11,RG999-CFLAP Accumulator,246000-Current Grants,MONEY ADVICE TRUST,1054299,"93,750.00"
Ministry of Justice,MoJ HQ,28-Jul-11,RB999-JPG - CJRD,246000-Current Grants,NSPCC,1054590,"31,442.73"
Ministry of Justice,MoJ HQ,28-Jul-11,RC999-Criminal Justice Group - OMS,246000-Current Grants,BLACK TRAINING AND ENTERPRISE GROUP,1054424,"37,500.00"
Ministry of Justice,MoJ HQ,19-Jul-11,MD600-Information Directorate,245000-Grants in Aid to NDPBs,INFORMATION COMMISSIONER (ICO),6362,"1,125,000.00"
Ministry of Justice,MoJ HQ,04-Jul-11,RB999-JPG - CJRD,245000-Grants in Aid to NDPBs,VICTIM SUPPORT,1052675,"9,473,408.15"
Ministry of Justice,MoJ HQ,07-Jul-11,KY340-Access to Justice Delivery,245000-Grants in Aid to NDPBs,THE PAROLE BOARD,6356,"1,000,000.00"
Ministry of Justice,MoJ HQ,07-Jul-11,RC999-Criminal Justice Group - OMS,245000-Grants in Aid to NDPBs,YOUTH JUSTICE BOARD FOR ENGLAND & WALES,6357,"20,000,000.00"
Ministry of Justice,MoJ HQ,07-Jul-11,KY300-Legal Services Strategy,311100-Legal Aid,LEGAL SERVICES COMMISSION,6355,"71,000,000.00"
Ministry of Justice,MoJ HQ,14-Jul-11,KY300-Legal Services Strategy,311100-Legal Aid,LEGAL SERVICES COMMISSION,6359,"27,000,000.00"
Ministry of Justice,MoJ HQ,21-Jul-11,KY300-Legal Services Strategy,311100-Legal Aid,LEGAL SERVICES COMMISSION,6363,"23,100,000.00"
Ministry of Justice,MoJ HQ,28-Jul-11,KY300-Legal Services Strategy,311100-Legal Aid,LEGAL SERVICES COMMISSION,6365,"27,000,000.00"
Ministry of Justice,MoJ HQ,11-Jul-11,PZ501-MoJ ICT Feeder,532000-Tangible GBV - Additions,HP ENTERPRISE SERVICES UK LTD,1053088,"63,360.44"
Ministry of Justice,MoJ HQ,11-Jul-11,PZ501-MoJ ICT Feeder,532000-Tangible GBV - Additions,HP ENTERPRISE SERVICES UK LTD,1053088,"242,769.37"
Ministry of Justice,MoJ HQ,11-Jul-11,PZ501-MoJ ICT Feeder,532000-Tangible GBV - Additions,HP ENTERPRISE SERVICES UK LTD,1053088,"135,212.34"
Ministry of Justice,MoJ HQ,11-Jul-11,PZ501-MoJ ICT Feeder,532000-Tangible GBV - Additions,HP ENTERPRISE SERVICES UK LTD,1053088,"108,219.25"
Ministry of Justice,MoJ HQ,11-Jul-11,PZ501-MoJ ICT Feeder,532000-Tangible GBV - Additions,HP ENTERPRISE SERVICES UK LTD,1053088,"38,368.14"
Ministry of Justice,MoJ HQ,11-Jul-11,PZ501-MoJ ICT Feeder,532000-Tangible GBV - Additions,STERIA LTD,1053161,"73,053.97"
Ministry of Justice,MoJ HQ,11-Jul-11,PZ501-MoJ ICT Feeder,532000-Tangible GBV - Additions,HP ENTERPRISE SERVICES UK LTD,1053088,"222,188.39"
Ministry of Justice,MoJ HQ,14-Jul-11,PZ501-MoJ ICT Feeder,532000-Tangible GBV - Additions,HP ENTERPRISE SERVICES UK LTD,1053386,"266,628.28"
Ministry of Justice,MoJ HQ,14-Jul-11,PZ501-MoJ ICT Feeder,532000-Tangible GBV - Additions,HP ENTERPRISE SERVICES UK LTD,1053386,"116,285.70"
Ministry of Justice,MoJ HQ,14-Jul-11,PZ501-MoJ ICT Feeder,532000-Tangible GBV - Additions,HP ENTERPRISE SERVICES UK LTD,1053386,"116,072.35"
Ministry of Justice,MoJ HQ,14-Jul-11,PZ501-MoJ ICT Feeder,532000-Tangible GBV - Additions,STERIA LTD,1053564,"71,323.94"
Ministry of Justice,MoJ HQ,14-Jul-11,PZ501-MoJ ICT Feeder,532000-Tangible GBV - Additions,HP ENTERPRISE SERVICES UK LTD,1053386,"61,785.83"
Ministry of Justice,MoJ HQ,26-Jul-11,PZ501-MoJ ICT Feeder,532000-Tangible GBV - Additions,HP ENTERPRISE SERVICES UK LTD,1054385,"104,620.09"
Ministry of Justice,MoJ HQ,26-Jul-11,PZ501-MoJ ICT Feeder,532000-Tangible GBV - Additions,HP ENTERPRISE SERVICES UK LTD,1054385,"108,879.90"
Ministry of Justice,MoJ HQ,28-Jul-11,PZ501-MoJ ICT Feeder,532000-Tangible GBV - Additions,CABLE & WIRELESS,1054438,"68,850.66"
Ministry of Justice,MoJ HQ,07-Jul-11,PZ501-MoJ ICT Feeder,532000-Tangible GBV - Additions,FUJITSU SERVICES LTD,1052859,"32,599.09"
Ministry of Justice,MoJ HQ,04-Jul-11,PZ501-MoJ ICT Feeder,532000-Tangible GBV - Additions,STERIA LTD,1052661,"342,503.28"
Ministry of Justice,MoJ HQ,04-Jul-11,PZ501-MoJ ICT Feeder,532000-Tangible GBV - Additions,STERIA LTD,1052661,"471,209.14"
Ministry of Justice,MoJ HQ,07-Jul-11,PZ501-MoJ ICT Feeder,532000-Tangible GBV - Additions,FUJITSU SERVICES LTD,1052859,"123,757.41"
Ministry of Justice,MoJ HQ,05-Jul-11,WW000-Balance Sheet,610400-Debtors <1 year - Prepayments & Accrued Income,CITY OF WESTMINSTER,1052710,"112,465.32"
Ministry of Justice,MoJ HQ,05-Jul-11,WW000-Balance Sheet,610400-Debtors <1 year - Prepayments & Accrued Income,LONDON BOROUGH OF ISLINGTON,1052746,"32,842.50"
Ministry of Justice,MoJ HQ,05-Jul-11,WW000-Balance Sheet,610400-Debtors <1 year - Prepayments & Accrued Income,LONDON BOROUGH OF CAMDEN,1052745,"63,889.09"
Ministry of Justice,MoJ HQ,05-Jul-11,WW000-Balance Sheet,610400-Debtors <1 year - Prepayments & Accrued Income,CITY OF WESTMINSTER,1052710,"68,255.21"
Ministry of Justice,MoJ HQ,27-Jul-11,WW000-Balance Sheet,611000-Debtors <1 year - Other Debtors,HOME OFFICE IT,1054389,"7,075,000.00"
Ministry of Justice,MoJ HQ,19-Jul-11,WW000-Balance Sheet,710100-Creditors < 1 year - Other Taxation & Social Security,HMRC,1126,"2,092,729.40"
Ministry of Justice,MoJ HQ,19-Jul-11,WW000-Balance Sheet,710100-Creditors < 1 year - Other Taxation & Social Security,HMRC,1124,"65,265.54"
Ministry of Justice,MoJ HQ,19-Jul-11,WW000-Balance Sheet,710100-Creditors < 1 year - Other Taxation & Social Security,HMRC,1125,"48,638.94"
Ministry of Justice,MoJ HQ,19-Jul-11,WW000-Balance Sheet,710100-Creditors < 1 year - Other Taxation & Social Security,HMRC,1127,"1,580,800.58"
Ministry of Justice,MoJ HQ,06-Jul-11,QY100-GPC Management - MoJ,710200-Creditors < 1 year - Trade & Other Creditors,HM PRISON SERVICE,1123,"1,009,951.23"
Ministry of Justice,MoJ HQ,21-Jul-11,WW000-Balance Sheet,710600-Creditor < 1 year - Payable to Consolidated Fund,HM TREASURY - CFER PAYOVER,1132,"212,887.11"
Ministry of Justice,MoJ HQ,21-Jul-11,WW000-Balance Sheet,710600-Creditor < 1 year - Payable to Consolidated Fund,HM TREASURY - CFER PAYOVER,1133,"11,361,228.55"
Ministry of Justice,MoJ HQ,19-Jul-11,WW000-Balance Sheet,811000-Interdepartmental - MoJHQ,HMRC,1130,"133,175.52"
Ministry of Justice,MoJ HQ,19-Jul-11,WW000-Balance Sheet,811000-Interdepartmental - MoJHQ,HMRC,1131,"123,793.23"
Ministry of Justice,MoJ HQ,15-Jul-11,KY340-Access to Justice Delivery,245000-Grants in Aid to NDPBs,CRIMINAL CASES REVIEW COMMISSION#KY14611288,6360,"750,000.00"
Ministry of Justice,HMCTS,20-Jul-11,SL999-Centralised Frontline,211000-Judicial Salaries - Salaried,JUDICIAL PENSIONS SCHEME,1680474,"1,306,360.77"
Ministry of Justice,HMCTS,20-Jul-11,SL999-Centralised Frontline,211000-Judicial Salaries - Salaried,JUDICIAL PENSIONS SCHEME,1680474,"4,718,668.09"
Ministry of Justice,HMCTS,01-Jul-11,HZ999-North East Region,221000-Property Rent and Rates,EDDISONS,1658885,"135,660.30"
Ministry of Justice,HMCTS,13-Jul-11,FZ999-Midlands Region,221000-Property Rent and Rates,CBRE CB RICHARD ELLIS,1672727,"48,885.90"
Ministry of Justice,HMCTS,22-Jul-11,HZ999-North East Region,221000-Property Rent and Rates,STANDARD LIFE INVESTMENTS,1685500,"47,044.50"
Ministry of Justice,HMCTS,12-Jul-11,AQ999-HQ - Finance & Governance,223001-Printing Postage and Office expenditure,XEROX (UK) LTD,1670410,"42,449.76"
Ministry of Justice,HMCTS,12-Jul-11,CZ999-South East Region,223001-Printing Postage and Office expenditure,XEROX (UK) LTD,1670410,"33,786.72"
Ministry of Justice,HMCTS,26-Jul-11,BZ999-London Region,223001-Printing Postage and Office expenditure,XEROX (UK) LTD,1689005,"50,228.51"
Ministry of Justice,HMCTS,26-Jul-11,AQ999-HQ - Finance & Governance,223001-Printing Postage and Office expenditure,XEROX (UK) LTD,1689005,"92,890.93"
Ministry of Justice,HMCTS,08-Jul-11,AG999-HQ - Estates,222002-Other Property Costs,BEACHCROFT,1666572,"25,932.00"
Ministry of Justice,HMCTS,26-Jul-11,AG999-HQ - Estates,222002-Other Property Costs,BEACHCROFT,1688099,"30,902.75"
Ministry of Justice,HMCTS,01-Jul-11,BZ999-London Region,222002-Other Property Costs,DERBYSHIRE COURTS LTD,1658864,"532,377.44"
Ministry of Justice,HMCTS,27-Jul-11,BZ999-London Region,222002-Other Property Costs,DERBYSHIRE COURTS LTD,1691503,"532,934.53"
Ministry of Justice,HMCTS,06-Jul-11,SL999-Centralised Frontline,222001-Maintenance,VALUATION OFFICE AGENCY,1665731,"32,520.00"
Ministry of Justice,HMCTS,08-Jul-11,AG999-HQ - Estates,222001-Maintenance,WHEELERS,1667366,"41,114.58"
Ministry of Justice,HMCTS,01-Jul-11,BZ999-London Region,222001-Maintenance,SYKES & SON LTD,1659366,"128,048.02"
Ministry of Justice,HMCTS,06-Jul-11,BZ999-London Region,222001-Maintenance,SKANSEN INTERIORS LTD,1665688,"31,467.66"
Ministry of Justice,HMCTS,12-Jul-11,GZ999-North West Region,261000-Fuel and Utilities,UNITED UTILITIES WATER PLC,428034,"29,919.68"
Ministry of Justice,HMCTS,29-Jul-11,BZ999-London Region,261000-Fuel and Utilities,THAMES WATER UTILITIES LTD,1694457,"40,421.05"
Ministry of Justice,HMCTS,08-Jul-11,GZ999-North West Region,261000-Fuel and Utilities,EDF ENERGY LTD,1666757,"26,129.52"
Ministry of Justice,HMCTS,08-Jul-11,BZ999-London Region,261000-Fuel and Utilities,EDF ENERGY LTD,1666757,"42,100.09"
Ministry of Justice,HMCTS,12-Jul-11,HZ999-North East Region,261000-Fuel and Utilities,BRITISH GAS BUSINESS,1669643,"41,091.92"
Ministry of Justice,HMCTS,19-Jul-11,HZ999-North East Region,261000-Fuel and Utilities,BRITISH GAS BUSINESS,1677496,"32,170.58"
Ministry of Justice,HMCTS,19-Jul-11,DZ999-South West Region,261000-Fuel and Utilities,BRITISH GAS BUSINESS,1677496,"28,718.71"
Ministry of Justice,HMCTS,19-Jul-11,GZ999-North West Region,261000-Fuel and Utilities,BRITISH GAS BUSINESS,1677496,"27,169.96"
Ministry of Justice,HMCTS,19-Jul-11,EZ999-Wales Region,261000-Fuel and Utilities,BRITISH GAS BUSINESS,1677496,"28,739.59"
Ministry of Justice,HMCTS,20-Jul-11,CZ999-South East Region,261000-Fuel and Utilities,BRITISH GAS BUSINESS,1680298,"54,922.06"
Ministry of Justice,HMCTS,27-Jul-11,BZ999-London Region,261000-Fuel and Utilities,BRITISH GAS BUSINESS,1691452,"46,869.38"
Ministry of Justice,HMCTS,05-Jul-11,GZ999-North West Region,261000-Fuel and Utilities,CORONA ENERGY,1661571,"78,783.78"
Ministry of Justice,HMCTS,05-Jul-11,GZ999-North West Region,261000-Fuel and Utilities,CORONA ENERGY,1661571,"65,162.01"
Ministry of Justice,HMCTS,19-Jul-11,DZ999-South West Region,261000-Fuel and Utilities,CORONA ENERGY,1677611,"32,243.71"
Ministry of Justice,HMCTS,19-Jul-11,GZ999-North West Region,261000-Fuel and Utilities,CORONA ENERGY,1677611,"51,171.41"
Ministry of Justice,HMCTS,19-Jul-11,HZ999-North East Region,261000-Fuel and Utilities,CORONA ENERGY,1677611,"39,530.84"
Ministry of Justice,HMCTS,19-Jul-11,FZ999-Midlands Region,261000-Fuel and Utilities,CORONA ENERGY,1677611,"46,934.07"
Ministry of Justice,HMCTS,22-Jul-11,CZ999-South East Region,261000-Fuel and Utilities,CORONA ENERGY,1684911,"41,362.77"
Ministry of Justice,HMCTS,22-Jul-11,BZ999-London Region,261000-Fuel and Utilities,CORONA ENERGY,1684911,"50,139.12"
Ministry of Justice,HMCTS,06-Jul-11,DZ999-South West Region,222002-Other Property Costs,MITIE SECURITY LTD,1664797,"285,951.38"
Ministry of Justice,HMCTS,06-Jul-11,FZ999-Midlands Region,222002-Other Property Costs,MITIE SECURITY LTD,1664797,"410,683.30"
Ministry of Justice,HMCTS,06-Jul-11,EZ999-Wales Region,222002-Other Property Costs,MITIE SECURITY LTD,1664797,"185,984.44"
Ministry of Justice,HMCTS,08-Jul-11,CZ999-South East Region,222002-Other Property Costs,MITIE SECURITY LTD,1667025,"525,163.68"
Ministry of Justice,HMCTS,19-Jul-11,HZ999-North East Region,222002-Other Property Costs,MITIE SECURITY LTD,1678221,"403,894.78"
Ministry of Justice,HMCTS,19-Jul-11,AQ999-HQ - Finance & Governance,222002-Other Property Costs,MITIE SECURITY LTD,1678221,"175,739.59"
Ministry of Justice,HMCTS,22-Jul-11,GZ999-North West Region,222002-Other Property Costs,MITIE SECURITY LTD,1685206,"414,185.56"
Ministry of Justice,HMCTS,22-Jul-11,BZ999-London Region,222002-Other Property Costs,MITIE SECURITY LTD,1685206,"722,513.18"
Ministry of Justice,HMCTS,01-Jul-11,FZ999-Midlands Region,222002-Other Property Costs,1ST CLASS HYGIENE LTD,1658699,"39,848.50"
Ministry of Justice,HMCTS,06-Jul-11,GZ999-North West Region,222002-Other Property Costs,"OCS GROUP UK LTD, OCS ENGINEERING",1664817,"28,078.37"
Ministry of Justice,HMCTS,08-Jul-11,CZ999-South East Region,222002-Other Property Costs,HI-SPEC FACILITIES SUPPORT CO PLC,1666876,"243,818.78"
Ministry of Justice,HMCTS,08-Jul-11,GZ999-North West Region,222002-Other Property Costs,ELITE CLEANING & ENV SERVICES LTD,1666762,"178,145.91"
Ministry of Justice,HMCTS,08-Jul-11,HZ999-North East Region,222002-Other Property Costs,RENTOKIL INITIAL UK LIMITED,1667209,"50,403.65"
Ministry of Justice,HMCTS,08-Jul-11,DZ999-South West Region,222002-Other Property Costs,REGENT OFFICE CARE LTD,1667201,"127,580.37"
Ministry of Justice,HMCTS,08-Jul-11,HZ999-North East Region,222002-Other Property Costs,ELITE CLEANING & ENV SERVICES LTD,1666762,"138,173.22"
Ministry of Justice,HMCTS,12-Jul-11,EZ999-Wales Region,222002-Other Property Costs,OCS SUPPORT SERVICES LTD,1670131,"91,099.48"
Ministry of Justice,HMCTS,13-Jul-11,AQ999-HQ - Finance & Governance,222002-Other Property Costs,REGENT OFFICE CARE LTD,1673654,"27,278.63"
Ministry of Justice,HMCTS,15-Jul-11,GZ999-North West Region,222002-Other Property Costs,"OCS GROUP UK LTD, OCS ENGINEERING",1675791,"28,078.37"
Ministry of Justice,HMCTS,15-Jul-11,BZ999-London Region,222002-Other Property Costs,VICTORIA GENERAL CLEANING SERVICES LTD,1675980,"67,521.55"
Ministry of Justice,HMCTS,15-Jul-11,BZ999-London Region,222002-Other Property Costs,VICTORIA GENERAL CLEANING SERVICES LTD,1675980,"67,521.55"
Ministry of Justice,HMCTS,19-Jul-11,FZ999-Midlands Region,222002-Other Property Costs,REGENT OFFICE CARE LTD,1679256,"240,098.21"
Ministry of Justice,HMCTS,22-Jul-11,BZ999-London Region,222002-Other Property Costs,MACLELLAN INTERNATIONAL LTD,1685161,"319,183.07"
Ministry of Justice,HMCTS,26-Jul-11,HZ999-North East Region,222002-Other Property Costs,RENTOKIL INITIAL UK LIMITED,1688796,"26,710.78"
Ministry of Justice,HMCTS,26-Jul-11,AQ999-HQ - Finance & Governance,222002-Other Property Costs,MACLELLAN INTERNATIONAL LTD,1688478,"30,122.63"
Ministry of Justice,HMCTS,26-Jul-11,AG999-HQ - Estates,222002-Other Property Costs,DEPARTMENT FOR WORK & PENSIONS (DWP),1688229,"748,806.96"
Ministry of Justice,HMCTS,26-Jul-11,AG999-HQ - Estates,222002-Other Property Costs,DEPARTMENT FOR WORK & PENSIONS (DWP),1688229,"968,857.90"
Ministry of Justice,HMCTS,22-Jul-11,AG999-HQ - Estates,222002-Other Property Costs,DEPARTMENT FOR WORK & PENSIONS (DWP),1684946,"48,944.99"
Ministry of Justice,HMCTS,22-Jul-11,AG999-HQ - Estates,222002-Other Property Costs,DEPARTMENT FOR WORK & PENSIONS (DWP),1684946,"51,235.81"
Ministry of Justice,HMCTS,29-Jul-11,AG999-HQ - Estates,222002-Other Property Costs,DEPARTMENT FOR WORK & PENSIONS (DWP),1693741,"216,760.74"
Ministry of Justice,HMCTS,05-Jul-11,DZ999-South West Region,222001-Maintenance,ATKINS,1661404,"88,073.50"
Ministry of Justice,HMCTS,08-Jul-11,CZ999-South East Region,222001-Maintenance,EC HARRIS LLP,1666753,"153,000.00"
Ministry of Justice,HMCTS,08-Jul-11,HZ999-North East Region,222001-Maintenance,DTZ DEBENHAM TIE LEUNG,1666744,"61,344.77"
Ministry of Justice,HMCTS,19-Jul-11,BZ999-London Region,222001-Maintenance,EC HARRIS LLP,1677698,"97,127.29"
Ministry of Justice,HMCTS,22-Jul-11,EZ999-Wales Region,222001-Maintenance,WYG MANAGEMENT SERVICES LTD,1685587,"31,270.82"
Ministry of Justice,HMCTS,26-Jul-11,GZ999-North West Region,222001-Maintenance,DTZ DEBENHAM TIE LEUNG,1688246,"61,602.31"
Ministry of Justice,HMCTS,29-Jul-11,BZ999-London Region,222001-Maintenance,EC HARRIS LLP,1693759,"32,400.00"
Ministry of Justice,HMCTS,12-Jul-11,HZ999-North East Region,222001-Maintenance,TELEREAL TRILLIUM,1670307,"90,745.30"
Ministry of Justice,HMCTS,08-Jul-11,HZ999-North East Region,222001-Maintenance,TASS EUROPE LTD,1667300,"30,846.54"
Ministry of Justice,HMCTS,05-Jul-11,EZ999-Wales Region,222001-Maintenance,KIER FACILITIES SERVICES LTD,1661844,"25,821.23"
Ministry of Justice,HMCTS,05-Jul-11,EZ999-Wales Region,222001-Maintenance,KIER FACILITIES SERVICES LTD,1661844,"67,438.79"
Ministry of Justice,HMCTS,05-Jul-11,HZ999-North East Region,222001-Maintenance,BAILEY MAINTENANCE LTD,1661415,"53,589.92"
Ministry of Justice,HMCTS,05-Jul-11,DZ999-South West Region,222001-Maintenance,KIER FACILITIES SERVICES LTD,1661844,"38,510.58"
Ministry of Justice,HMCTS,05-Jul-11,BZ999-London Region,222001-Maintenance,CARILLION PLANNED MAINTENANCE,1661510,"97,108.21"
Ministry of Justice,HMCTS,05-Jul-11,EZ999-Wales Region,222001-Maintenance,KIER FACILITIES SERVICES LTD,1661844,"41,739.98"
Ministry of Justice,HMCTS,05-Jul-11,HZ999-North East Region,222001-Maintenance,BAILEY MAINTENANCE LTD,1661415,"53,589.92"
Ministry of Justice,HMCTS,06-Jul-11,HZ999-North East Region,222001-Maintenance,BAILEY MAINTENANCE LTD,1664538,"47,345.33"
Ministry of Justice,HMCTS,06-Jul-11,GZ999-North West Region,222001-Maintenance,BAILEY MAINTENANCE LTD,1664538,"59,146.32"
Ministry of Justice,HMCTS,15-Jul-11,CZ999-South East Region,222001-Maintenance,NORLAND MANAGED SERVICES LTD,1675786,"42,328.12"
Ministry of Justice,HMCTS,15-Jul-11,CZ999-South East Region,222001-Maintenance,NORLAND MANAGED SERVICES LTD,1675786,"33,824.81"
Ministry of Justice,HMCTS,15-Jul-11,EZ999-Wales Region,222001-Maintenance,KIER FACILITIES SERVICES LTD,1675681,"41,739.98"
Ministry of Justice,HMCTS,15-Jul-11,CZ999-South East Region,222001-Maintenance,MITIE TECHNICAL FACILITIES MANAGEMENT LTD,1675757,"41,825.84"
Ministry of Justice,HMCTS,22-Jul-11,FZ999-Midlands Region,222001-Maintenance,MITIE TECHNICAL FACILITIES MANAGEMENT LTD,1685207,"439,941.36"
Ministry of Justice,HMCTS,26-Jul-11,DZ999-South West Region,222001-Maintenance,NORLAND MANAGED SERVICES LTD,1688563,"40,420.22"
Ministry of Justice,HMCTS,26-Jul-11,GZ999-North West Region,222001-Maintenance,CARILLION PLANNED MAINTENANCE,1688162,"201,945.07"
Ministry of Justice,HMCTS,29-Jul-11,HZ999-North East Region,222001-Maintenance,BAILEY MAINTENANCE LTD,1693624,"53,589.92"
Ministry of Justice,HMCTS,29-Jul-11,HZ999-North East Region,222001-Maintenance,BAILEY MAINTENANCE LTD,1693624,"46,696.97"
Ministry of Justice,HMCTS,05-Jul-11,BZ999-London Region,222001-Maintenance,SYKES & SON LTD,1662349,"37,440.60"
Ministry of Justice,HMCTS,08-Jul-11,AP999-HQ - Strategy & Change,262000-SCA Costs,LIBERATA UK LTD,1666974,"107,775.00"
Ministry of Justice,HMCTS,22-Jul-11,AP999-HQ - Strategy & Change,262000-SCA Costs,LIBERATA UK LTD,1685147,"40,255.12"
Ministry of Justice,HMCTS,06-Jul-11,AP999-HQ - Strategy & Change,262000-SCA Costs,LIBERATA UK LTD,1664755,"163,323.28"
Ministry of Justice,HMCTS,08-Jul-11,AP999-HQ - Strategy & Change,262000-SCA Costs,LIBERATA UK LTD,1666974,"25,533.38"
Ministry of Justice,HMCTS,20-Jul-11,AP999-HQ - Strategy & Change,262000-SCA Costs,LIBERATA UK LTD,1680496,"25,072.34"
Ministry of Justice,HMCTS,20-Jul-11,AP999-HQ - Strategy & Change,262000-SCA Costs,LIBERATA UK LTD,1680496,"52,384.96"
Ministry of Justice,HMCTS,29-Jul-11,AP999-HQ - Strategy & Change,262000-SCA Costs,LIBERATA UK LTD,1693920,"296,201.10"
Ministry of Justice,HMCTS,15-Jul-11,HZ999-North East Region,262000-SCA Costs,MODERN COURTS (HUMBERSIDE) LTD,1675761,"427,486.95"
Ministry of Justice,HMCTS,19-Jul-11,GZ999-North West Region,262000-SCA Costs,UK COURT SERVICES LTD,1679486,"572,459.20"
Ministry of Justice,HMCTS,19-Jul-11,GZ999-North West Region,262000-SCA Costs,UK COURT SERVICES LTD,1679486,"87,327.43"
Ministry of Justice,HMCTS,19-Jul-11,HZ999-North East Region,262000-SCA Costs,PALECASTLE LTD,1679152,"112,369.80"
Ministry of Justice,HMCTS,19-Jul-11,DZ999-South West Region,262000-SCA Costs,ENTERPRISE CIVIC BUILDINGS LIMITED,1677719,"305,031.62"
Ministry of Justice,HMCTS,19-Jul-11,FZ999-Midlands Region,262000-SCA Costs,H & W COURTS LIMITED,1677825,"562,415.20"
Ministry of Justice,HMCTS,19-Jul-11,CZ999-South East Region,262000-SCA Costs,MODERN COURTS (EAST ANGLIA) LTD,1678227,"496,561.36"
Ministry of Justice,HMCTS,19-Jul-11,DZ999-South West Region,262000-SCA Costs,SERVICES SUPPORT (AVON & SOMERSET) LTD,1679330,"814,389.17"
Ministry of Justice,HMCTS,22-Jul-11,BZ999-London Region,262000-SCA Costs,IRON MOUNTAIN UK LTD,1685092,"195,691.72"
Ministry of Justice,HMCTS,22-Jul-11,FZ999-Midlands Region,262000-SCA Costs,H & W COURTS LIMITED,1685054,"604,746.97"
Ministry of Justice,HMCTS,01-Jul-11,HZ999-North East Region,223001-Printing Postage and Office expenditure,HM PRISON SERVICE,1658977,"157,160.62"
Ministry of Justice,HMCTS,27-Jul-11,HZ999-North East Region,223001-Printing Postage and Office expenditure,HM PRISON SERVICE,1691577,"72,125.72"
Ministry of Justice,HMCTS,05-Jul-11,DZ999-South West Region,223001-Printing Postage and Office expenditure,ROYAL MAIL,1662259,"36,076.04"
Ministry of Justice,HMCTS,13-Jul-11,AQ999-HQ - Finance & Governance,223001-Printing Postage and Office expenditure,ROYAL MAIL GROUP PLC,1673671,"175,128.69"
Ministry of Justice,HMCTS,13-Jul-11,AQ999-HQ - Finance & Governance,223001-Printing Postage and Office expenditure,ROYAL MAIL GROUP PLC,1673671,"181,893.13"
Ministry of Justice,HMCTS,13-Jul-11,CZ999-South East Region,223001-Printing Postage and Office expenditure,ROYAL MAIL,1673670,"26,250.85"
Ministry of Justice,HMCTS,01-Jul-11,BZ999-London Region,223001-Printing Postage and Office expenditure,DX NETWORK SERVICES LTD,1658876,"102,482.95"
Ministry of Justice,HMCTS,01-Jul-11,BZ999-London Region,223001-Printing Postage and Office expenditure,DX NETWORK SERVICES LTD,1658876,"190,361.00"
Ministry of Justice,HMCTS,05-Jul-11,DZ999-South West Region,223001-Printing Postage and Office expenditure,DX NETWORK SERVICES LTD,1661637,"281,928.20"
Ministry of Justice,HMCTS,15-Jul-11,AQ999-HQ - Finance & Governance,223001-Printing Postage and Office expenditure,DX NETWORK SERVICES LTD,1675504,"67,359.71"
Ministry of Justice,HMCTS,08-Jul-11,BZ999-London Region,265000-IT & Telecommunications,AMTEC CONSULTING PLC,1666530,"43,740.00"
Ministry of Justice,HMCTS,05-Jul-11,CZ999-South East Region,265000-IT & Telecommunications,CABLE & WIRELESS GLOBAL CARD SERVICES,1661501,"27,309.07"
Ministry of Justice,HMCTS,20-Jul-11,BZ999-London Region,265000-IT & Telecommunications,BT TELECOMMUNICATIONS PLC,1680303,"27,573.66"
Ministry of Justice,HMCTS,01-Jul-11,FZ999-Midlands Region,265000-IT & Telecommunications,CABLE & WIRELESS,1658789,"50,036.40"
Ministry of Justice,HMCTS,01-Jul-11,BZ999-London Region,265000-IT & Telecommunications,CABLE & WIRELESS,1658789,"32,776.74"
Ministry of Justice,HMCTS,05-Jul-11,FZ999-Midlands Region,265000-IT & Telecommunications,CABLE & WIRELESS,1661500,"50,036.40"
Ministry of Justice,HMCTS,05-Jul-11,AP999-HQ - Strategy & Change,265000-IT & Telecommunications,LOGICA UK LTD,1661886,"28,940.40"
Ministry of Justice,HMCTS,12-Jul-11,AP999-HQ - Strategy & Change,265000-IT & Telecommunications,LOGICA UK LTD,1670015,"135,073.20"
Ministry of Justice,HMCTS,06-Jul-11,GZ999-North West Region,265000-IT & Telecommunications,ATOS ORIGIN IT SERVICES UK LTD,1664535,"25,948.80"
Ministry of Justice,HMCTS,06-Jul-11,AP999-HQ - Strategy & Change,265000-IT & Telecommunications,ATOS ORIGIN IT SERVICES UK LTD,1664535,"29,102.40"
Ministry of Justice,HMCTS,12-Jul-11,FZ999-Midlands Region,265000-IT & Telecommunications,ATOS ORIGIN IT SERVICES UK LTD,1669585,"28,209.60"
Ministry of Justice,HMCTS,13-Jul-11,FZ999-Midlands Region,265000-IT & Telecommunications,ATOS ORIGIN IT SERVICES UK LTD,1672683,"61,142.40"
Ministry of Justice,HMCTS,19-Jul-11,SK999-Enforcement,265000-IT & Telecommunications,ATOS ORIGIN IT SERVICES UK LTD,1677406,"25,207.20"
Ministry of Justice,HMCTS,19-Jul-11,AP999-HQ - Strategy & Change,265000-IT & Telecommunications,ATOS ORIGIN IT SERVICES UK LTD,1677406,"26,019.29"
Ministry of Justice,HMCTS,26-Jul-11,SK999-Enforcement,265000-IT & Telecommunications,ATOS ORIGIN IT SERVICES UK LTD,1688084,"50,575.20"
Ministry of Justice,HMCTS,27-Jul-11,AP999-HQ - Strategy & Change,265000-IT & Telecommunications,ATOS ORIGIN IT SERVICES UK LTD,1691424,"26,019.29"
Ministry of Justice,HMCTS,12-Jul-11,FZ999-Midlands Region,226000-Court Costs,EUREST SERVICES,1669800,"40,091.70"
Ministry of Justice,HMCTS,08-Jul-11,DZ999-South West Region,226000-Court Costs,MERRILL LEGAL SOLUTIONS,1667019,"48,673.87"
Ministry of Justice,HMCTS,15-Jul-11,BZ999-London Region,226000-Court Costs,MERRILL LEGAL SOLUTIONS,1675745,"34,788.76"
Ministry of Justice,HMCTS,27-Jul-11,BZ999-London Region,226000-Court Costs,SELLERS LEGAL SERVICES LTD,1691993,"49,714.90"
Ministry of Justice,HMCTS,12-Jul-11,BZ999-London Region,226000-Court Costs,MERRILL LEGAL SOLUTIONS,1670070,"30,236.66"
Ministry of Justice,HMCTS,19-Jul-11,GZ999-North West Region,226000-Court Costs,CATER WALSH REPORTING LTD,433239,"70,589.10"
Ministry of Justice,HMCTS,05-Jul-11,SL999-Centralised Frontline,226000-Court Costs,MESSRS LONDON BOROUGH OF SOUTHWARK#DX 136147,422942,"45,551.56"
Ministry of Justice,HMCTS,05-Jul-11,SL999-Centralised Frontline,226000-Court Costs,MESSRS I B B SOLICITORS#DX 45105,422903,"73,718.40"
Ministry of Justice,HMCTS,05-Jul-11,SL999-Centralised Frontline,226000-Court Costs,MESSRS RENSHAW DERRICK & COMPANY#DX 7642,1660722,"29,083.89"
Ministry of Justice,HMCTS,05-Jul-11,SL999-Centralised Frontline,226000-Court Costs,HARBORD & CO#DX 30717,1660560,"60,419.32"
Ministry of Justice,HMCTS,05-Jul-11,SL999-Centralised Frontline,226000-Court Costs,MESSRS GQS SOLICITORS#DX 20658,422872,"59,706.98"
Ministry of Justice,HMCTS,05-Jul-11,SL999-Centralised Frontline,226000-Court Costs,MESSRS BSB#DX 37905,422809,"74,950.13"
Ministry of Justice,HMCTS,05-Jul-11,SL999-Centralised Frontline,226000-Court Costs,MESSRS S SATHA & CO#DX 133012,423000,"41,082.66"
Ministry of Justice,HMCTS,15-Jul-11,SL999-Centralised Frontline,226000-Court Costs,A M STRACHAN & CO,432243,"201,571.82"
Ministry of Justice,HMCTS,19-Jul-11,SL999-Centralised Frontline,226000-Court Costs,MESSRS MARTIN CRAY & CO#DX 2725,1677169,"31,843.28"
Ministry of Justice,HMCTS,19-Jul-11,SL999-Centralised Frontline,226000-Court Costs,MESSRS HICKMAN & ROSE#DX53346,432810,"31,533.94"
Ministry of Justice,HMCTS,19-Jul-11,SL999-Centralised Frontline,226000-Court Costs,BRIDGE MCFARLAND SOLICITORS#DX 701683,1677017,"44,683.00"
Ministry of Justice,HMCTS,19-Jul-11,SL999-Centralised Frontline,226000-Court Costs,MESSRS BARLOW LYDE & GILBERT LLP#DX 155,432672,"42,082.39"
Ministry of Justice,HMCTS,19-Jul-11,SL999-Centralised Frontline,226000-Court Costs,MESSRS PEARSON FIELDING SOLICITORS#DX 14277,1677194,"85,043.74"
Ministry of Justice,HMCTS,13-Jul-11,"AM999-HQ - Civil, Family & Tribunals",226000-Court Costs,LEGAL SERVICE TRANSLATION & INTERPRETING LTD,1672878,"79,068.86"
Ministry of Justice,HMCTS,05-Jul-11,SL999-Centralised Frontline,311200-Criminal Legal Aid,MESSRS HOGAN BROWN SOLICITORS#DX 14117,1660659,"61,115.06"
Ministry of Justice,HMCTS,19-Jul-11,SL999-Centralised Frontline,311200-Criminal Legal Aid,FRISBY SOLICITORS LTD T/A FRISBY & CO#DX 14564,1677036,"60,064.46"
Ministry of Justice,HMCTS,19-Jul-11,SL999-Centralised Frontline,311200-Criminal Legal Aid,MESSRS MANN & CO#DX 22561,1677166,"30,254.40"
Ministry of Justice,HMCTS,08-Jul-11,DZ999-South West Region,532000-Tangible GBV - Additions,HURD ROLLAND PARTNERSHIP,1666907,"55,131.60"
Ministry of Justice,HMCTS,08-Jul-11,BZ999-London Region,532000-Tangible GBV - Additions,HURD ROLLAND PARTNERSHIP,1666907,"64,369.91"
Ministry of Justice,HMCTS,12-Jul-11,EZ999-Wales Region,532000-Tangible GBV - Additions,WYG MANAGEMENT SERVICES LTD,1670408,"42,270.26"
Ministry of Justice,HMCTS,12-Jul-11,HZ999-North East Region,532000-Tangible GBV - Additions,MITIE TECHNICAL FACILITIES MANAGEMENT LTD,1670081,"25,425.20"
Ministry of Justice,HMCTS,15-Jul-11,HZ999-North East Region,532000-Tangible GBV - Additions,HONEYWELL CONTROL SYSTEMS LTD,1675627,"66,369.37"
Ministry of Justice,HMCTS,29-Jul-11,BZ999-London Region,532000-Tangible GBV - Additions,TPS,1694476,"27,313.20"
Ministry of Justice,HMCTS,05-Jul-11,FZ999-Midlands Region,532000-Tangible GBV - Additions,DH FATHERS LTD,1661616,"38,596.24"
Ministry of Justice,HMCTS,05-Jul-11,BZ999-London Region,532000-Tangible GBV - Additions,BEIGHTON CONSTRUCTION LTD,1661441,"31,151.98"
Ministry of Justice,HMCTS,05-Jul-11,HZ999-North East Region,532000-Tangible GBV - Additions,MITIE TECHNICAL FACILITIES MANAGEMENT LTD,1661938,"74,885.26"
Ministry of Justice,HMCTS,06-Jul-11,BZ999-London Region,532000-Tangible GBV - Additions,CITY OF LONDON,1664594,"269,129.38"
Ministry of Justice,HMCTS,06-Jul-11,BZ999-London Region,532000-Tangible GBV - Additions,BRITSPACE MODULAR BUILDINGS LIMITED,1664561,"319,070.95"
Ministry of Justice,HMCTS,06-Jul-11,BZ999-London Region,532000-Tangible GBV - Additions,QUINN LONDON LTD,1665653,"103,045.39"
Ministry of Justice,HMCTS,08-Jul-11,BZ999-London Region,532000-Tangible GBV - Additions,LAING O'ROURKE CONSTRUCTION SOUTH LTD,1666962,"2,221,594.80"
Ministry of Justice,HMCTS,08-Jul-11,DZ999-South West Region,532000-Tangible GBV - Additions,STONE BCI LTD,1667289,"64,798.27"
Ministry of Justice,HMCTS,08-Jul-11,EZ999-Wales Region,532000-Tangible GBV - Additions,SMART UK BUILDING SERVICES LTD,1667268,"29,788.72"
Ministry of Justice,HMCTS,08-Jul-11,GZ999-North West Region,532000-Tangible GBV - Additions,ISG CONSTRUCTION LTD,1666915,"29,942.40"
Ministry of Justice,HMCTS,12-Jul-11,CZ999-South East Region,532000-Tangible GBV - Additions,GALLIFORD TRY CONSTRUCTION LTD CENTRAL,1669833,"1,016,062.14"
Ministry of Justice,HMCTS,12-Jul-11,CZ999-South East Region,532000-Tangible GBV - Additions,GALLIFORD TRY CONSTRUCTION LTD CENTRAL,1669833,"1,032,182.56"
Ministry of Justice,HMCTS,15-Jul-11,BZ999-London Region,532000-Tangible GBV - Additions,BRITSPACE MODULAR BUILDINGS LIMITED,1675377,"284,582.21"
Ministry of Justice,HMCTS,15-Jul-11,BZ999-London Region,532000-Tangible GBV - Additions,BREYER GROUP PLC,432253,"70,794.68"
Ministry of Justice,HMCTS,15-Jul-11,BZ999-London Region,532000-Tangible GBV - Additions,SYKES & SON LTD,1675935,"32,304.23"
Ministry of Justice,HMCTS,22-Jul-11,CZ999-South East Region,532000-Tangible GBV - Additions,ARK BUILD PLC,1684769,"51,167.11"
Ministry of Justice,HMCTS,22-Jul-11,CZ999-South East Region,532000-Tangible GBV - Additions,DH FATHERS LTD,1684950,"32,221.24"
Ministry of Justice,HMCTS,22-Jul-11,CZ999-South East Region,532000-Tangible GBV - Additions,PEXHURST SERVICES LTD,1685403,"102,087.20"
Ministry of Justice,HMCTS,26-Jul-11,HZ999-North East Region,532000-Tangible GBV - Additions,MITIE TECHNICAL FACILITIES MANAGEMENT LTD,1688531,"75,125.26"
Ministry of Justice,HMCTS,26-Jul-11,DZ999-South West Region,532000-Tangible GBV - Additions,STONE BCI LTD,1688886,"87,793.99"
Ministry of Justice,HMCTS,26-Jul-11,HZ999-North East Region,532000-Tangible GBV - Additions,MITIE TECHNICAL FACILITIES MANAGEMENT LTD,1688531,"28,260.88"
Ministry of Justice,HMCTS,27-Jul-11,EZ999-Wales Region,532000-Tangible GBV - Additions,HENSTAFF CONSTRUCTION LTD,1691569,"46,207.36"
Ministry of Justice,HMCTS,29-Jul-11,GZ999-North West Region,532000-Tangible GBV - Additions,GARSIDE & LAYCOCK LTD,1693794,"212,585.48"
Ministry of Justice,HMCTS,29-Jul-11,FZ999-Midlands Region,532000-Tangible GBV - Additions,JD INTERIORS,1693884,"31,937.00"
Ministry of Justice,HMCTS,29-Jul-11,BZ999-London Region,532000-Tangible GBV - Additions,BREYER GROUP PLC,443372,"84,534.68"
Ministry of Justice,HMCTS,22-Jul-11,AP999-HQ - Strategy & Change,512000-Intangible GBV - Additions,LOGICA UK LTD,1685152,"40,537.20"
Ministry of Justice,HMCTS,29-Jul-11,AP999-HQ - Strategy & Change,512000-Intangible GBV - Additions,LOGICA UK LTD,1693929,"34,779.60"
Ministry of Justice,HMCTS,01-Jul-11,GZ999-North West Region,610300-Debtors < 1 Year - Deposits & Advances,NEOPOST LTD,1659168,"120,200.00"
Ministry of Justice,HMCTS,08-Jul-11,GZ999-North West Region,610300-Debtors < 1 Year - Deposits & Advances,NEOPOST LTD,1667060,"125,999.00"
Ministry of Justice,HMCTS,19-Jul-11,GZ999-North West Region,610300-Debtors < 1 Year - Deposits & Advances,NEOPOST LTD,1678295,"137,314.00"
Ministry of Justice,HMCTS,26-Jul-11,GZ999-North West Region,610300-Debtors < 1 Year - Deposits & Advances,NEOPOST LTD,1688555,"122,650.00"
Ministry of Justice,HMCTS,29-Jul-11,GZ999-North West Region,610300-Debtors < 1 Year - Deposits & Advances,NEOPOST LTD,1693998,"139,208.00"
Ministry of Justice,HMCTS,01-Jul-11,CZ999-South East Region,610400-Debtors <1 year - Prepayments & Accrued Income,AYLESBURY CONSERVATIVES,1658731,"38,750.00"
Ministry of Justice,HMCTS,05-Jul-11,BZ999-London Region,610400-Debtors <1 year - Prepayments & Accrued Income,CLSH MANAGEMENT LIMITED,1661555,"112,582.54"
Ministry of Justice,HMCTS,08-Jul-11,CZ999-South East Region,610400-Debtors <1 year - Prepayments & Accrued Income,ARROWCROFT SERVICES LTD,6430,"83,333.40"
Ministry of Justice,HMCTS,08-Jul-11,FZ999-Midlands Region,610400-Debtors <1 year - Prepayments & Accrued Income,NB REAL ESTATE,1667057,"26,531.71"
Ministry of Justice,HMCTS,12-Jul-11,EZ999-Wales Region,610400-Debtors <1 year - Prepayments & Accrued Income,BEACHCROFT,1669614,"53,383.33"
Ministry of Justice,HMCTS,22-Jul-11,HZ999-North East Region,610400-Debtors <1 year - Prepayments & Accrued Income,GVA GRIMLEY LTD T/A GVA,1685053,"41,828.40"
Ministry of Justice,HMCTS,26-Jul-11,EZ999-Wales Region,610400-Debtors <1 year - Prepayments & Accrued Income,PORT TALBOT LIMITED PARTNERSHIP,1688771,"85,404.19"
Ministry of Justice,HMCTS,27-Jul-11,AG999-HQ - Estates,610400-Debtors <1 year - Prepayments & Accrued Income,GENERAL PHYSICS (UK) LTD,1691546,"66,094.20"
Ministry of Justice,HMCTS,01-Jul-11,EZ999-Wales Region,610400-Debtors <1 year - Prepayments & Accrued Income,NEWPORT CITY COUNCIL,1659170,"32,419.64"
Ministry of Justice,HMCTS,01-Jul-11,BZ999-London Region,610400-Debtors <1 year - Prepayments & Accrued Income,ROYAL BOROUGH OF KINGSTON UPON THAMES,1659288,"82,300.63"
Ministry of Justice,HMCTS,06-Jul-11,FZ999-Midlands Region,610400-Debtors <1 year - Prepayments & Accrued Income,WARWICKSHIRE POLICE AUTHORITY,1665744,"587,135.40"
Ministry of Justice,HMCTS,06-Jul-11,FZ999-Midlands Region,610400-Debtors <1 year - Prepayments & Accrued Income,WARWICKSHIRE POLICE AUTHORITY,1665744,"1,198,846.64"
Ministry of Justice,HMCTS,06-Jul-11,BZ999-London Region,610400-Debtors <1 year - Prepayments & Accrued Income,CITY OF LONDON,1664594,"1,237,750.00"
Ministry of Justice,HMCTS,06-Jul-11,FZ999-Midlands Region,610400-Debtors <1 year - Prepayments & Accrued Income,WARWICKSHIRE POLICE AUTHORITY,1665744,"1,199,451.22"
Ministry of Justice,HMCTS,12-Jul-11,GZ999-North West Region,610400-Debtors <1 year - Prepayments & Accrued Income,LANCASHIRE POLICE AUTHORITY,1669991,"48,427.34"
Ministry of Justice,HMCTS,12-Jul-11,BZ999-London Region,610400-Debtors <1 year - Prepayments & Accrued Income,CITY OF LONDON,1669701,"58,936.47"
Ministry of Justice,HMCTS,12-Jul-11,GZ999-North West Region,610400-Debtors <1 year - Prepayments & Accrued Income,LANCASHIRE COUNTY COUNCIL,1669990,"112,965.00"
Ministry of Justice,HMCTS,15-Jul-11,DZ999-South West Region,610400-Debtors <1 year - Prepayments & Accrued Income,DEVON COUNTY COUNCIL,1675485,"90,484.00"
Ministry of Justice,HMCTS,15-Jul-11,BZ999-London Region,610400-Debtors <1 year - Prepayments & Accrued Income,DEPARTMENT FOR WORK & PENSIONS (DWP),1675481,"95,976.28"
Ministry of Justice,HMCTS,22-Jul-11,EZ999-Wales Region,610400-Debtors <1 year - Prepayments & Accrued Income,FLINTSHIRE COUNTY COUNCIL,1685003,"38,139.91"
Ministry of Justice,HMCTS,12-Jul-11,BZ999-London Region,610400-Debtors <1 year - Prepayments & Accrued Income,GVA GRIMLEY LTD T/A GVA,1669876,"194,599.49"
Ministry of Justice,HMCTS,22-Jul-11,FZ999-Midlands Region,610400-Debtors <1 year - Prepayments & Accrued Income,WOLVERHAMPTON CITY COUNCIL,1684743,"33,774.00"
Ministry of Justice,HMCTS,22-Jul-11,BZ999-London Region,610400-Debtors <1 year - Prepayments & Accrued Income,CITY OF WESTMINSTER,1684518,"301,245.00"
Ministry of Justice,HMCTS,22-Jul-11,BZ999-London Region,610400-Debtors <1 year - Prepayments & Accrued Income,CITY OF WESTMINSTER,1684518,"52,707.73"
Ministry of Justice,HMCTS,22-Jul-11,BZ999-London Region,610400-Debtors <1 year - Prepayments & Accrued Income,CITY OF WESTMINSTER,1684518,"27,898.23"
Ministry of Justice,HMCTS,22-Jul-11,BZ999-London Region,610400-Debtors <1 year - Prepayments & Accrued Income,CITY OF WESTMINSTER,1684518,"35,060.28"
Ministry of Justice,HMCTS,22-Jul-11,BZ999-London Region,610400-Debtors <1 year - Prepayments & Accrued Income,CITY OF WESTMINSTER,1684518,"46,206.00"
Ministry of Justice,HMCTS,22-Jul-11,BZ999-London Region,610400-Debtors <1 year - Prepayments & Accrued Income,CITY OF WESTMINSTER,1684518,"31,519.76"
Ministry of Justice,HMCTS,22-Jul-11,HZ999-North East Region,610400-Debtors <1 year - Prepayments & Accrued Income,ROTHERHAM METROPOLITAN BOROUGH COUNCIL,1684671,"25,114.00"
Ministry of Justice,HMCTS,22-Jul-11,CZ999-South East Region,610400-Debtors <1 year - Prepayments & Accrued Income,BASILDON DISTRICT COUNCIL,1684468,"33,341.00"
Ministry of Justice,HMCTS,22-Jul-11,DZ999-South West Region,610400-Debtors <1 year - Prepayments & Accrued Income,BOURNEMOUTH BOROUGH COUNCIL,1684485,"38,320.50"
Ministry of Justice,HMCTS,22-Jul-11,HZ999-North East Region,610400-Debtors <1 year - Prepayments & Accrued Income,BRADFORD METROPOLITAN COUNCIL,1684487,"53,259.00"
Ministry of Justice,HMCTS,22-Jul-11,DZ999-South West Region,610400-Debtors <1 year - Prepayments & Accrued Income,BRISTOL CITY COUNCIL,1684492,"69,280.00"
Ministry of Justice,HMCTS,22-Jul-11,DZ999-South West Region,610400-Debtors <1 year - Prepayments & Accrued Income,BRISTOL CITY COUNCIL,1684492,"47,630.00"
Ministry of Justice,HMCTS,22-Jul-11,DZ999-South West Region,610400-Debtors <1 year - Prepayments & Accrued Income,BRISTOL CITY COUNCIL,1684492,"44,166.00"
Ministry of Justice,HMCTS,22-Jul-11,EZ999-Wales Region,610400-Debtors <1 year - Prepayments & Accrued Income,CARDIFF COUNTY COUNCIL,1684500,"29,447.00"
Ministry of Justice,HMCTS,22-Jul-11,DZ999-South West Region,610400-Debtors <1 year - Prepayments & Accrued Income,EXETER CITY COUNCIL,1684563,"43,083.50"
Ministry of Justice,HMCTS,22-Jul-11,GZ999-North West Region,610400-Debtors <1 year - Prepayments & Accrued Income,LIVERPOOL CITY COUNCIL,1684597,"125,570.00"
Ministry of Justice,HMCTS,22-Jul-11,GZ999-North West Region,610400-Debtors <1 year - Prepayments & Accrued Income,LIVERPOOL CITY COUNCIL,1684597,"69,713.00"
Ministry of Justice,HMCTS,22-Jul-11,BZ999-London Region,610400-Debtors <1 year - Prepayments & Accrued Income,LONDON BOROUGH OF ISLINGTON,1684612,"76,557.00"
Ministry of Justice,HMCTS,22-Jul-11,BZ999-London Region,610400-Debtors <1 year - Prepayments & Accrued Income,LONDON BOROUGH OF ISLINGTON,1684612,"49,377.00"
Ministry of Justice,HMCTS,22-Jul-11,BZ999-London Region,610400-Debtors <1 year - Prepayments & Accrued Income,LONDON BOROUGH OF SOUTHWARK,1684618,"43,941.00"
Ministry of Justice,HMCTS,22-Jul-11,BZ999-London Region,610400-Debtors <1 year - Prepayments & Accrued Income,LONDON BOROUGH OF SOUTHWARK,1684618,"104,190.00"
Ministry of Justice,HMCTS,22-Jul-11,BZ999-London Region,610400-Debtors <1 year - Prepayments & Accrued Income,LONDON BOROUGH OF SOUTHWARK,1684618,"84,258.00"
Ministry of Justice,HMCTS,22-Jul-11,BZ999-London Region,610400-Debtors <1 year - Prepayments & Accrued Income,LONDON BOROUGH OF SOUTHWARK,1684618,"31,483.50"
Ministry of Justice,HMCTS,22-Jul-11,CZ999-South East Region,610400-Debtors <1 year - Prepayments & Accrued Income,MAIDSTONE BOROUGH COUNCIL,1684623,"57,589.00"
Ministry of Justice,HMCTS,22-Jul-11,FZ999-Midlands Region,610400-Debtors <1 year - Prepayments & Accrued Income,DERBY CITY COUNCIL,1684540,"27,279.00"
Ministry of Justice,HMCTS,22-Jul-11,CZ999-South East Region,610400-Debtors <1 year - Prepayments & Accrued Income,CHELMSFORD BOROUGH COUNCIL,1684505,"30,093.50"
Ministry of Justice,HMCTS,22-Jul-11,CZ999-South East Region,610400-Debtors <1 year - Prepayments & Accrued Income,CHELMSFORD BOROUGH COUNCIL,1684505,"26,629.50"
Ministry of Justice,HMCTS,22-Jul-11,FZ999-Midlands Region,610400-Debtors <1 year - Prepayments & Accrued Income,CITY OF STOKE ON TRENT,1684517,"30,310.00"
Ministry of Justice,HMCTS,22-Jul-11,BZ999-London Region,610400-Debtors <1 year - Prepayments & Accrued Income,LONDON BOROUGH OF CAMDEN,1684603,"29,671.50"
Ministry of Justice,HMCTS,22-Jul-11,BZ999-London Region,610400-Debtors <1 year - Prepayments & Accrued Income,LONDON BOROUGH OF CAMDEN,1684603,"55,719.00"
Ministry of Justice,HMCTS,22-Jul-11,BZ999-London Region,610400-Debtors <1 year - Prepayments & Accrued Income,LONDON BOROUGH OF CAMDEN,1684603,"154,020.00"
Ministry of Justice,HMCTS,22-Jul-11,GZ999-North West Region,610400-Debtors <1 year - Prepayments & Accrued Income,CARLISLE CITY COUNCIL,1684501,"25,330.50"
Ministry of Justice,HMCTS,22-Jul-11,BZ999-London Region,610400-Debtors <1 year - Prepayments & Accrued Income,CITY OF LONDON,1684516,"61,238.00"
Ministry of Justice,HMCTS,22-Jul-11,BZ999-London Region,610400-Debtors <1 year - Prepayments & Accrued Income,CITY OF LONDON,1684516,"34,046.50"
Ministry of Justice,HMCTS,22-Jul-11,DZ999-South West Region,610400-Debtors <1 year - Prepayments & Accrued Income,WINCHESTER CITY COUNCIL,1684741,"41,772.27"
Ministry of Justice,HMCTS,22-Jul-11,HZ999-North East Region,610400-Debtors <1 year - Prepayments & Accrued Income,MIDDLESBROUGH COUNCIL,1684632,"61,053.00"
Ministry of Justice,HMCTS,22-Jul-11,HZ999-North East Region,610400-Debtors <1 year - Prepayments & Accrued Income,MIDDLESBROUGH COUNCIL,1684632,"28,794.50"
Ministry of Justice,HMCTS,22-Jul-11,HZ999-North East Region,610400-Debtors <1 year - Prepayments & Accrued Income,NEWCASTLE UPON TYNE CITY COUNCIL,1684640,"64,084.00"
Ministry of Justice,HMCTS,22-Jul-11,CZ999-South East Region,610400-Debtors <1 year - Prepayments & Accrued Income,NORWICH CITY COUNCIL,1684653,"28,578.00"
Ministry of Justice,HMCTS,22-Jul-11,DZ999-South West Region,610400-Debtors <1 year - Prepayments & Accrued Income,PORTSMOUTH CITY COUNCIL,1684660,"41,568.00"
Ministry of Justice,HMCTS,22-Jul-11,GZ999-North West Region,610400-Debtors <1 year - Prepayments & Accrued Income,PRESTON CITY COUNCIL,1684662,"51,094.00"
Ministry of Justice,HMCTS,22-Jul-11,DZ999-South West Region,610400-Debtors <1 year - Prepayments & Accrued Income,SOUTHAMPTON CITY COUNCIL,1684698,"30,959.50"
Ministry of Justice,HMCTS,22-Jul-11,DZ999-South West Region,610400-Debtors <1 year - Prepayments & Accrued Income,SOUTHAMPTON CITY COUNCIL,1684698,"37,671.00"
Ministry of Justice,HMCTS,22-Jul-11,CZ999-South East Region,610400-Debtors <1 year - Prepayments & Accrued Income,ST ALBANS CITY & DISTRICT COUNCIL,1684701,"32,475.00"
Ministry of Justice,HMCTS,22-Jul-11,FZ999-Midlands Region,610400-Debtors <1 year - Prepayments & Accrued Income,CITY OF LINCOLN COUNCIL,1684515,"28,361.50"
Ministry of Justice,HMCTS,22-Jul-11,FZ999-Midlands Region,610400-Debtors <1 year - Prepayments & Accrued Income,COVENTRY CITY COUNCIL,1684530,"26,500.08"
Ministry of Justice,HMCTS,22-Jul-11,HZ999-North East Region,610400-Debtors <1 year - Prepayments & Accrued Income,SHEFFIELD CITY COUNCIL,1684683,"39,186.50"
Ministry of Justice,HMCTS,22-Jul-11,HZ999-North East Region,610400-Debtors <1 year - Prepayments & Accrued Income,SHEFFIELD CITY COUNCIL,1684683,"79,239.00"
Ministry of Justice,HMCTS,22-Jul-11,BZ999-London Region,610400-Debtors <1 year - Prepayments & Accrued Income,LONDON BOROUGH OF BRENT,1684601,"35,787.00"
Ministry of Justice,HMCTS,22-Jul-11,BZ999-London Region,610400-Debtors <1 year - Prepayments & Accrued Income,LONDON BOROUGH OF HOUNSLOW,1684611,"59,718.71"
Ministry of Justice,HMCTS,22-Jul-11,BZ999-London Region,610400-Debtors <1 year - Prepayments & Accrued Income,LONDON BOROUGH OF HARROW,1684608,"46,432.50"
Ministry of Justice,HMCTS,22-Jul-11,BZ999-London Region,610400-Debtors <1 year - Prepayments & Accrued Income,LONDON BOROUGH OF HAMMERSMITH & FULHAM,1684606,"42,199.33"
Ministry of Justice,HMCTS,22-Jul-11,CZ999-South East Region,610400-Debtors <1 year - Prepayments & Accrued Income,LUTON BOROUGH COUNCIL,1684622,"31,609.00"
Ministry of Justice,HMCTS,22-Jul-11,BZ999-London Region,610400-Debtors <1 year - Prepayments & Accrued Income,LONDON BOROUGH OF BROMLEY,1684602,"30,351.00"
Ministry of Justice,HMCTS,22-Jul-11,BZ999-London Region,610400-Debtors <1 year - Prepayments & Accrued Income,ROYAL BOROUGH OF KINGSTON UPON THAMES,1684672,"87,429.00"
Ministry of Justice,HMCTS,22-Jul-11,BZ999-London Region,610400-Debtors <1 year - Prepayments & Accrued Income,LONDON BOROUGH OF NEWHAM,1684615,"31,710.00"
Ministry of Justice,HMCTS,22-Jul-11,BZ999-London Region,610400-Debtors <1 year - Prepayments & Accrued Income,LONDON BOROUGH OF REDBRIDGE,1684616,"44,620.50"
Ministry of Justice,HMCTS,22-Jul-11,BZ999-London Region,610400-Debtors <1 year - Prepayments & Accrued Income,LONDON BOROUGH OF TOWER HAMLETS,1684620,"41,902.50"
Ministry of Justice,HMCTS,22-Jul-11,GZ999-North West Region,610400-Debtors <1 year - Prepayments & Accrued Income,MANCHESTER CITY COUNCIL,1684624,"47,388.61"
Ministry of Justice,HMCTS,22-Jul-11,GZ999-North West Region,610400-Debtors <1 year - Prepayments & Accrued Income,MANCHESTER CITY COUNCIL,1684624,"51,527.00"
Ministry of Justice,HMCTS,22-Jul-11,GZ999-North West Region,610400-Debtors <1 year - Prepayments & Accrued Income,MANCHESTER CITY COUNCIL,1684624,"227,325.00"
Ministry of Justice,HMCTS,22-Jul-11,CZ999-South East Region,610400-Debtors <1 year - Prepayments & Accrued Income,OXFORD CITY COUNCIL,1684656,"26,846.00"
Ministry of Justice,HMCTS,22-Jul-11,FZ999-Midlands Region,610400-Debtors <1 year - Prepayments & Accrued Income,NOTTINGHAM CITY COUNCIL,437848,"34,856.50"
Ministry of Justice,HMCTS,22-Jul-11,FZ999-Midlands Region,610400-Debtors <1 year - Prepayments & Accrued Income,NOTTINGHAM CITY COUNCIL,437848,"67,115.00"
Ministry of Justice,HMCTS,22-Jul-11,BZ999-London Region,610400-Debtors <1 year - Prepayments & Accrued Income,CROYDON COUNCIL,1684533,"68,403.00"
Ministry of Justice,HMCTS,22-Jul-11,BZ999-London Region,610400-Debtors <1 year - Prepayments & Accrued Income,CROYDON COUNCIL,1684533,"30,124.50"
Ministry of Justice,HMCTS,22-Jul-11,HZ999-North East Region,610400-Debtors <1 year - Prepayments & Accrued Income,HULL CITY COUNCIL,1684584,"30,093.50"
Ministry of Justice,HMCTS,22-Jul-11,BZ999-London Region,610400-Debtors <1 year - Prepayments & Accrued Income,LONDON BOROUGH OF HARINGEY,1684607,"53,907.00"
Ministry of Justice,HMCTS,22-Jul-11,BZ999-London Region,610400-Debtors <1 year - Prepayments & Accrued Income,LONDON BOROUGH OF GREENWICH,1684605,"67,497.00"
Ministry of Justice,HMCTS,22-Jul-11,CZ999-South East Region,610400-Debtors <1 year - Prepayments & Accrued Income,CANTERBURY CITY COUNCIL,1684499,"36,588.50"
Ministry of Justice,HMCTS,22-Jul-11,FZ999-Midlands Region,610400-Debtors <1 year - Prepayments & Accrued Income,NORTHAMPTON BOROUGH COUNCIL,1684651,"36,805.00"
Ministry of Justice,HMCTS,22-Jul-11,CZ999-South East Region,610400-Debtors <1 year - Prepayments & Accrued Income,READING BOROUGH COUNCIL,1684664,"45,032.00"
Ministry of Justice,HMCTS,22-Jul-11,HZ999-North East Region,610400-Debtors <1 year - Prepayments & Accrued Income,LEEDS CITY COUNCIL,1684594,"62,785.00"
Ministry of Justice,HMCTS,22-Jul-11,HZ999-North East Region,610400-Debtors <1 year - Prepayments & Accrued Income,LEEDS CITY COUNCIL,1684594,"48,496.00"
Ministry of Justice,HMCTS,22-Jul-11,FZ999-Midlands Region,610400-Debtors <1 year - Prepayments & Accrued Income,BIRMINGHAM CITY COUNCIL,1684473,"27,928.50"
Ministry of Justice,HMCTS,22-Jul-11,FZ999-Midlands Region,610400-Debtors <1 year - Prepayments & Accrued Income,BIRMINGHAM CITY COUNCIL,1684473,"127,735.00"
Ministry of Justice,HMCTS,22-Jul-11,FZ999-Midlands Region,610400-Debtors <1 year - Prepayments & Accrued Income,BIRMINGHAM CITY COUNCIL,1684473,"127,735.00"
Ministry of Justice,HMCTS,22-Jul-11,FZ999-Midlands Region,610400-Debtors <1 year - Prepayments & Accrued Income,BIRMINGHAM CITY COUNCIL,1684473,"127,735.00"
Ministry of Justice,HMCTS,22-Jul-11,FZ999-Midlands Region,610400-Debtors <1 year - Prepayments & Accrued Income,BIRMINGHAM CITY COUNCIL,1684473,"127,735.00"
Ministry of Justice,HMCTS,22-Jul-11,FZ999-Midlands Region,610400-Debtors <1 year - Prepayments & Accrued Income,BIRMINGHAM CITY COUNCIL,1684473,"127,735.00"
Ministry of Justice,HMCTS,22-Jul-11,FZ999-Midlands Region,610400-Debtors <1 year - Prepayments & Accrued Income,BIRMINGHAM CITY COUNCIL,1684473,"127,607.26"
Ministry of Justice,HMCTS,22-Jul-11,FZ999-Midlands Region,610400-Debtors <1 year - Prepayments & Accrued Income,BIRMINGHAM CITY COUNCIL,1684473,"42,217.50"
Ministry of Justice,HMCTS,22-Jul-11,FZ999-Midlands Region,610400-Debtors <1 year - Prepayments & Accrued Income,LEICESTER CITY COUNCIL,1684595,"30,959.50"
Ministry of Justice,HMCTS,19-Jul-11,WW000-Balance Sheet,710100-Creditors < 1 year - Other Taxation & Social Security,HMRC,1122,"327,705.20"
Ministry of Justice,HMCTS,19-Jul-11,WW000-Balance Sheet,710100-Creditors < 1 year - Other Taxation & Social Security,HMRC,1118,"9,640,282.52"
Ministry of Justice,HMCTS,19-Jul-11,WW000-Balance Sheet,710100-Creditors < 1 year - Other Taxation & Social Security,HMRC,1116,"742,164.00"
Ministry of Justice,HMCTS,19-Jul-11,WW000-Balance Sheet,710100-Creditors < 1 year - Other Taxation & Social Security,HMRC,1123,"55,036.95"
Ministry of Justice,HMCTS,19-Jul-11,WW000-Balance Sheet,710100-Creditors < 1 year - Other Taxation & Social Security,HMRC,1119,"7,021,009.42"
Ministry of Justice,HMCTS,19-Jul-11,WW000-Balance Sheet,710100-Creditors < 1 year - Other Taxation & Social Security,HMRC,1117,"547,869.49"
Ministry of Justice,HMCTS,15-Jul-11,BZ999-London Region,710800-Creditor <1 yr - Third Party Monies,THE OFFICIAL RECEIVER,432420,"204,515.00"
Ministry of Justice,HMCTS,15-Jul-11,BZ999-London Region,710800-Creditor <1 yr - Third Party Monies,THE OFFICIAL RECEIVER,432420,"197,575.00"
Ministry of Justice,HMCTS,07-Jul-11,SL999-Centralised Frontline,710800-Creditor <1 yr - Third Party Monies,ONE TIME CAPS,425205,"30,441.18"
Ministry of Justice,HMCTS,07-Jul-11,SL999-Centralised Frontline,710800-Creditor <1 yr - Third Party Monies,ONE TIME CAPS,426513,"25,534.68"
Ministry of Justice,HMCTS,07-Jul-11,SL999-Centralised Frontline,710800-Creditor <1 yr - Third Party Monies,ONE TIME CAPS,427335,"25,212.76"
Ministry of Justice,HMCTS,07-Jul-11,SL999-Centralised Frontline,710800-Creditor <1 yr - Third Party Monies,ONE TIME CAPS,425467,"33,105.26"
Ministry of Justice,HMCTS,14-Jul-11,SL999-Centralised Frontline,710800-Creditor <1 yr - Third Party Monies,ONE TIME CAPS,429716,"26,452.80"
Ministry of Justice,HMCTS,14-Jul-11,SL999-Centralised Frontline,710800-Creditor <1 yr - Third Party Monies,ONE TIME CAPS,430014,"36,265.67"
Ministry of Justice,HMCTS,14-Jul-11,SL999-Centralised Frontline,710800-Creditor <1 yr - Third Party Monies,ONE TIME CAPS,431116,"29,114.64"
Ministry of Justice,HMCTS,21-Jul-11,SL999-Centralised Frontline,710800-Creditor <1 yr - Third Party Monies,ONE TIME CAPS,434893,"28,178.61"
Ministry of Justice,HMCTS,21-Jul-11,SL999-Centralised Frontline,710800-Creditor <1 yr - Third Party Monies,ONE TIME CAPS,437186,"27,361.49"
Ministry of Justice,HMCTS,21-Jul-11,SL999-Centralised Frontline,710800-Creditor <1 yr - Third Party Monies,ONE TIME CAPS,435220,"41,580.90"
Ministry of Justice,HMCTS,21-Jul-11,SL999-Centralised Frontline,710800-Creditor <1 yr - Third Party Monies,ONE TIME CAPS,436356,"29,860.68"
Ministry of Justice,HMCTS,28-Jul-11,SL999-Centralised Frontline,710800-Creditor <1 yr - Third Party Monies,ONE TIME CAPS,440417,"25,751.39"
Ministry of Justice,HMCTS,28-Jul-11,SL999-Centralised Frontline,710800-Creditor <1 yr - Third Party Monies,ONE TIME CAPS,440767,"40,953.19"
Ministry of Justice,HMCTS,28-Jul-11,SL999-Centralised Frontline,710800-Creditor <1 yr - Third Party Monies,ONE TIME CAPS,442037,"31,043.07"
Ministry of Justice,HMCTS,28-Jul-11,SL999-Centralised Frontline,710800-Creditor <1 yr - Third Party Monies,ONE TIME CAPS,442954,"27,916.26"
Ministry of Justice,HMCTS,28-Jul-11,SL999-Centralised Frontline,710800-Creditor <1 yr - Third Party Monies,ONE TIME CAPS,442963,"30,323.18"
Ministry of Justice,HMCTS,18-Jul-11,CZ999-South East Region,222001-Maintenance,SAVILLS COMMERCIAL LTD#CA10810148,1677004,"66,706.89"
Ministry of Justice,HMCTS,06-Jul-11,BZ999-London Region,710200-Creditors < 1 year - Trade & Other Creditors,GRAYPEN LTD#IE40310140,423918,"31,000.00"
Ministry of Justice,HMCTS,13-Jul-11,BZ999-London Region,710200-Creditors < 1 year - Trade & Other Creditors,BOYATT SHIPS LTD NO 2 ACCOUNT#IE40310142,428415,"32,190.61"
